Cogmind - Beta 16 @@@ ROGUE MODE // 2025.11.28 @ 22:26:48 Player: MolePlayingNice Result: Fortifying 0b10! Performance ------------- Evolutions (9) 4500 Regions Visited (24) 4800 Robots Destroyed (439) 2195 Value Destroyed (33532) 33532 Prototype IDs (81) 1620 Alien Tech Used (18) 3600 Bonus (28619) 28619 TOTAL SCORE: 78866 Bonus ------- High Alert Combat Kills 8062 Follower Combat Kills 2737 Entered Garrisons 600 Used RIF Installer 500 Network Hubs Disabled 400 Registered with UFD 300 Met Optimus in HQ 500 Built Enhanced Grunts 300 Met R17 at Cetus 500 Found Hidden Lab 3000 Met R17 at Research 2000 Met MAIN.C 5000 Destroyed MAIN.C Shell 5000 Win 3000 Friendly Fire -3280 Cogmind --------- Core Integrity 771/1600 Matter 300/300 Energy 669/1340 System Corruption 0% +Membrane Temperature Hot (215) +ITN Movement Immobile (Siege) Location By MAIN.C's Side Parts ------- > --- POWER (3) -------- Quantum Reactor Improved Quantum Reactor Zero-point Reactor > --- PROPULSION (6) --- Experimental Biometal Heavy Treads Enhanced Armored Heavy Treads High-density Centrium Heavy Treads > --- UTILITY (11) ----- Experimental Cooling System High-capacity Storage Unit Experimental Energy Well Experimental Optical Array Experimental Core Analyzer Experimental Core Analyzer Advanced Particle Accelerator Experimental Weapon Cycler Centrium Heavy Armor Plating Advanced Force Field > --- WEAPON (6) ------- Heavy Quantum Rifle Sigix Sheargun Cooled Phase Cannon Enhanced Nova Cannon Enhanced Nova Cannon Enhanced Nova Cannon > --- INVENTORY (20) --- Quantum Reactor Zero-point Reactor Advanced Energy Well (500) Experimental Energy Well (0) Reaction Control System Centrium Heavy Armor Plating Graphene Brace Experimental EM Shield Advanced Remote Force Field Personal Teleporter v0.10 (Charged) Microwarp Drive Heavy Quantum Rifle Enhanced Nova Cannon Improved Potential Cannon Guided Remote Datajack Peak State ------------ > --- POWER ------------ Quantum Reactor Quantum Reactor Zero-point Reactor > --- PROPULSION ------- Experimental Biometal Heavy Treads Enhanced Armored Heavy Treads High-density Centrium Heavy Treads > --- UTILITY ---------- Experimental Cooling System High-capacity Storage Unit Experimental Energy Well Experimental Optical Array Experimental Core Analyzer Experimental Core Analyzer Advanced Particle Accelerator Experimental Weapon Cycler Centrium Heavy Armor Plating Advanced Force Field > --- WEAPON ----------- Sigix Sheargun Enhanced Nova Cannon Enhanced Nova Cannon Enhanced Nova Cannon Improved Potential Cannon > --- INVENTORY -------- Quantum Reactor Zero-point Reactor Advanced Energy Well Experimental Energy Well Reaction Control System Centrium Heavy Armor Plating Graphene Brace Experimental EM Shield Advanced Remote Force Field Personal Teleporter v0.10 Microwarp Drive Heavy Quantum Rifle Heavy Quantum Rifle Cooled Phase Cannon Guided Remote Datajack [Rating: 261] Favorites ----------- Power Quantum Reactor Engine Heavy Ion Engine Power Core Enhanced Fission Core Reactor Quantum Reactor Propulsion Centrium Leg Treads Centrium Heavy Treads Leg Centrium Leg Utility Experimental Targeting Computer Device Advanced Heat Sink Storage High-capacity Storage Unit Processor Experimental Targeting Computer Hackware Relay Coupler [NC] Protection Medium Regenerative Plating Artifact Phase Redirector Weapon Enhanced Quantum Rifle Energy Gun Enhanced Quantum Rifle Energy Cannon Enhanced Nova Cannon Ballistic Gun Advanced KE Penetrator Launcher Long-range Missile Launcher Special Weapon Guided Remote Datajack Impact Weapon Power Maul Slashing Weapon Phasing Sabre Build | -11 -10 -9 -9 -9 -9 -6 -6 -6 -6 -6 -5 -5 -4 -4 -4 -3 -3 -3 -2 -2 -2 -2 -1 -1 ------- Run | Yrd Mat Mat Sto Rec Scr Fac Ext Cet Arc Hub Fac Gar Fac Arm Lab Res Qua Sec Res Gar Res Gar Acc Com Slots Evolved 17 | . . 2 . . . 6 . . . . 2 . 2 . . 2 . . 2 . . . 1 . Power 2 | . . . . . . . . . . . 1 . . . . . . . 1 . . . . . Propulsion 4 | . . . . . . 2 . . . . . . 1 . . . . . . . . . 1 . Utility 7 | . . 2 . . . 2 . . . . 1 . 1 . . 2 . . -1 . . . . . Weapon 4 | . . . . . . 2 . . . . . . . . . . . . 2 . . . . . Parts Attached 320 | . 9 11 15 1 13 9 15 16 8 13 8 14 14 16 4 23 11 27 4 14 7 10 27 31 Power 41 | . . 2 2 . . . 2 2 . 1 1 3 3 5 . 2 1 4 . 3 2 . 5 3 Engine 4 | . . . 2 . . . 1 . . . . 1 . . . . . . . . . . . . Core 9 | . . 2 . . . . 1 . . . . 1 1 4 . . . . . . . . . . Reactor 28 | . . . . . . . . 2 . 1 1 1 2 1 . 2 1 4 . 3 2 . 5 3 Propulsion 52 | . . 2 8 . 2 5 . 3 . 1 . 5 1 . . 4 1 4 . . 1 3 7 5 Treads 20 | . . 2 8 . 2 1 . 3 . 1 . . . . . . . . . . . . . 3 Leg 32 | . . . . . . 4 . . . . . 5 1 . . 4 1 4 . . 1 3 7 2 Wheel . | . . . . . . . . . . . . . . . . . . . . . . . . . Hover . | . . . . . . . . . . . . . . . . . . . . . . . . . Flight . | . . . . . . . . . . . . . . . . . . . . . . . . . Utility 128 | . 3 5 2 1 7 3 6 6 5 6 3 3 6 5 3 10 8 13 2 2 . 2 11 16 Device 74 | . 1 4 1 . 4 1 2 1 5 3 1 3 5 5 1 9 6 3 1 2 . 2 6 8 Storage 7 | . 1 . . . 1 . . 1 . . . . 1 . . . . . . . . . . 3 Processor 14 | . . . . . 1 1 1 . . . 1 . . . 1 . . 5 1 . . . 2 1 Hackware 11 | . . 1 . . . 1 . . . 1 1 . . . . 1 1 1 . . . . 3 1 Protection 18 | . 1 . 1 1 1 . 3 4 . 2 . . . . 1 . . 1 . . . . . 3 Artifact 4 | . . . . . . . . . . . . . . . . . 1 3 . . . . . . Weapon 99 | . 6 2 3 . 4 1 7 5 3 5 4 3 4 6 1 7 1 6 2 9 4 5 4 7 Energy Gun 36 | . . . . . . . 1 1 . 1 . 1 1 4 . 4 . 5 1 8 2 2 4 1 Energy Cannon 17 | . . . . . 1 . . . 1 . 2 1 1 . . . . 1 . . 1 3 . 6 Ballistic Gun 35 | . 4 2 2 . 2 1 5 2 2 4 2 1 2 2 . 1 . . 1 1 1 . . . Ballistic Cannon . | . . . . . . . . . . . . . . . . . . . . . . . . . Launcher 5 | . 1 . 1 . . . 1 . . . . . . . . 2 . . . . . . . . Special Weapon 3 | . 1 . . . . . . 1 . . . . . . 1 . . . . . . . . . Impact Weapon 2 | . . . . . 1 . . . . . . . . . . . 1 . . . . . . . Slashing Weapon 1 | . . . . . . . . 1 . . . . . . . . . . . . . . . . Piercing Weapon . | . . . . . . . . . . . . . . . . . . . . . . . . . Special Melee Weapon . | . . . . . . . . . . . . . . . . . . . . . . . . . Unidentified Prototypes 68 | . . . 3 . . . . 8 1 3 2 . . 4 3 10 7 10 . . 1 . 1 15 Corrupted Parts 4 | . . . . . . . . 3 1 . . . . . . . . . . . . . . . System Corruption 21 | . . . . . . . . 17 4 . . . . . . . . . . . . . . . Parts Lost 27 | . 1 1 2 . . . . . . 3 1 . 1 4 . 1 1 . . 3 1 3 3 2 Power 4 | . . 1 1 . . . . . . 1 . . . 1 . . . . . . . . . . Propulsion 2 | . . . . . . . . . . . . . . . . . . . . . 1 . . 1 Utility 12 | . 1 . . . . . . . . 1 1 . 1 2 . . 1 . . 1 . 1 2 1 Weapon 9 | . . . 1 . . . . . . 1 . . . 1 . 1 . . . 2 . 2 1 . Highest Loss Streak 2 | . 1 1 2 . . . . . . 1 1 . 1 2 . 1 1 . . 2 1 2 1 1 To Critical Strikes . | . . . . . . . . . . . . . . . . . . . . . . . . . Average Backups 16 | 6 12 14 14 15 14 11 13 13 13 13 13 14 18 19 7 19 19 17 14 17 17 18 17 17 Power . | 1 1 . . 1 . 1 1 . 1 . . . 1 . . 1 . 1 . . . . . 1 Propulsion 1 | 4 3 3 4 4 3 1 1 . 1 . . 1 1 1 . 1 2 . . . . 1 . . Utility 6 | . . . 1 2 2 3 5 6 6 7 8 6 7 8 3 7 7 5 7 6 7 9 9 8 Weapon 4 | 1 7 9 8 8 6 3 4 3 3 1 1 3 4 6 2 4 4 3 3 6 4 3 3 4 Tool/Special . | . . . . . . . . . . . . . . . . . . . . . . . . . Unused Backups 89 | . 10 5 1 . 7 1 6 6 2 . 4 5 5 4 2 4 5 6 1 3 2 1 2 7 Power 15 | . 2 1 . . . 1 2 1 . . . 1 1 . . 1 . 1 . 1 . . . 3 Propulsion 12 | . 4 1 . . 1 . . 1 . . . . 1 . . 1 . . . . 1 1 . 1 Utility 25 | . 2 . 1 . . . 2 4 1 . 4 . 1 . . 1 2 2 1 . . . 2 2 Weapon 31 | . 2 3 . . 6 . 2 . 1 . . 3 2 4 1 1 . 2 . 2 1 . . 1 Tool/Special 6 | . . . . . . . . . . . . 1 . . 1 . 3 1 . . . . . . Average Slot Usage (%) 93 | . 98 94 100 100 97 91 100 90 85 85 86 92 95 99 51 99 98 88 88 95 92 90 94 89 Engine 2 | . 14 4 6 11 10 6 2 . . . . 3 1 . . . . . . . . . . . Core 1 | . . 6 4 . . . 3 . . . . 1 . 6 3 7 3 . . . . . . . Reactor 5 | . . . . . . . . 5 6 6 9 5 7 3 . 1 4 5 8 11 8 8 11 11 Treads 6 | . . 21 22 22 21 11 . 8 13 13 11 6 . . . . . . . . . . . 4 Leg 14 | . 28 . . . . 11 26 8 . . . 9 24 25 26 22 22 21 20 20 19 20 22 13 Device 11 | . 7 17 11 6 10 13 10 6 10 7 11 16 19 24 4 18 16 13 11 8 10 9 6 13 Storage 5 | . 14 11 11 11 10 6 6 6 6 6 5 5 5 5 1 4 4 4 4 4 5 4 3 4 Processor 10 | . . . . . 2 5 12 13 13 12 11 5 5 5 5 9 9 15 21 23 20 20 22 13 Hackware 2 | . . 11 11 11 7 6 . . . 2 1 . . . . 3 4 3 . . . . . . Protection 7 | . 5 . 10 15 11 6 8 12 8 9 8 10 9 5 1 8 8 4 3 4 4 4 2 2 Energy Gun 8 | . 1 . . . . . . . . 1 . 1 6 8 4 14 14 13 17 21 20 19 16 10 Energy Cannon 2 | . . . . . 1 4 1 . . 2 6 3 1 2 2 3 3 3 2 2 2 4 3 11 Ballistic Gun 9 | . 24 21 19 22 19 15 24 21 25 21 14 17 11 8 . . . . . . . . . . Peak Build Rating 261 | 6 11 19 22 22 35 70 75 115 117 117 129 134 157 159 150 177 190 216 224 227 224 234 241 261 Average Rating 135 | 6 8 16 21 22 27 55 72 104 113 107 121 129 144 147 79 168 170 198 211 214 214 214 213 230 On Entrance 117 | 6 6 11 17 22 22 32 70 74 113 117 110 123 130 149 148 150 174 184 198 210 223 213 234 212 Avg Prop Armor Cover (%) 28 | . . . . . . 11 . 6 . . . . . . 43 . . 2 . . . . . 6 Naked Turns . | . . . . . . . . . . . . . . . . . . . . . . . . . Heaviest Build 222 | 13 33 31 38 40 45 54 58 78 80 82 97 113 136 117 113 135 143 158 150 177 181 179 181 222 Greatest Support 255 | 20 20 40 40 40 43 90 90 160 160 160 160 160 150 150 150 150 148 148 148 148 148 145 169 255 Greatest Overweight (x) 6 | . 1 . . . 6 2 . . . 1 1 1 . . . . . 1 1 1 1 1 1 2 Average Overweight (x) . | . . . . . . . . . . . . . . . . . . . . . . . . . Largest Inventory Capacity 20 | 8 15 15 15 15 15 15 15 15 15 15 15 15 20 20 20 20 20 20 20 20 20 20 20 20 Average Capacity 17 | 8 14 15 15 15 14 15 15 15 15 15 15 15 18 20 10 20 20 20 20 20 20 20 20 20 Most Carried 20 | 6 15 15 15 15 15 15 15 15 15 15 15 15 20 20 20 20 20 20 20 20 20 20 20 20 Average Carried 17 | 6 12 14 14 15 14 12 14 14 14 14 14 14 18 19 6 19 19 19 17 19 19 19 19 19 Final Capacity 20 | 8 15 15 15 15 15 15 15 15 15 15 15 15 20 20 20 20 20 20 20 20 20 20 20 20 Final Carried 20 | 6 15 15 15 15 15 15 15 15 15 14 15 15 20 20 20 20 20 15 20 20 20 20 19 19 Class Distribution -------------------- 21% | Scavenger-Tank 20% | Scavenger-Executioner 14% | Mutant 9% | Scavenger-Gunner 8% | Scavenger-Skirmisher 6% | Hacker-Skirmisher 6% | Scavenger-Mutant 4% | Scientist-Executioner Dominant Class ---------------- Mutant | -10/Materials Scavenger-Mutant | -9/Materials Scavenger-Mutant | -9/Storage Scavenger-Mutant | -9/Recycling Mutant | -9/Scraptown Scavenger-Skirmisher | -6/Factory Commander-Skirmisher | -6/Extension Commander-Tank | -6/Cetus Scavenger-Tank | -6/Archives Scavenger-Tank | -6/Hub_04(d) Scavenger-Tank | -5/Factory Scavenger-Tank | -5/Garrison Scavenger-Tank | -4/Factory Scavenger-Tank | -4/Armory Mutant | -4/Lab Hacker-Skirmisher | -3/Research Scavenger-Skirmisher | -3/Quarantine Scavenger-Gunner | -3/Section 7 Scavenger-Executioner | -2/Research Scavenger-Executioner | -2/Garrison Scavenger-Executioner | -2/Research Scavenger-Executioner | -2/Garrison Scavenger-Executioner | -1/Access Scavenger-Executioner | -1/Command Resources | -11 -10 -9 -9 -9 -9 -6 -6 -6 -6 -6 -5 -5 -4 -4 -4 -3 -3 -3 -2 -2 -2 -2 -1 -1 ----------- Run | Yrd Mat Mat Sto Rec Scr Fac Ext Cet Arc Hub Fac Gar Fac Arm Lab Res Qua Sec Res Gar Res Gar Acc Com Matter Collected 11362 | 200 345 367 534 58 240 100 861 558 479 995 486 834 452 607 . 698 493 1257 138 175 135 175 700 475 Remotely . | . . . . . . . . . . . . . . . . . . . . . . . . . Salvage Created 29066 | . 612 539 754 228 124 100 942 292 542 1434 530 929 1369 440 . 1394 1671 4353 667 2548 1796 1388 2380 4034 Parts 1368 | . 49 39 59 10 8 9 66 19 47 79 22 43 54 25 . 38 65 200 27 99 77 64 115 154 Haulers Intercepted 11 | . 1 . 3 . . . . . . . . . . . . 4 . . 1 . 2 . . . Recyclers Shooed 9 | . 1 3 2 . . . . . . . . . 1 . . 1 . . . . . . 1 . Parts Field Recycled . | . . . . . . . . . . . . . . . . . . . . . . . . . Retrieved Matter . | . . . . . . . . . . . . . . . . . . . . . . . . . Parts Self-Destructed . | . . . . . . . . . . . . . . . . . . . . . . . . . Prevented . | . . . . . . . . . . . . . . . . . . . . . . . . . Parts Restored . | . . . . . . . . . . . . . . . . . . . . . . . . . Kills | -11 -10 -9 -9 -9 -9 -6 -6 -6 -6 -6 -5 -5 -4 -4 -4 -3 -3 -3 -2 -2 -2 -2 -1 -1 ------- Run | Yrd Mat Mat Sto Rec Scr Fac Ext Cet Arc Hub Fac Gar Fac Arm Lab Res Qua Sec Res Gar Res Gar Acc Com Combat Hostiles Destroyed 372 | . 16 11 15 2 2 2 16 2 2 21 7 16 21 8 . 11 17 53 6 32 19 20 32 41 Guns 252 | . 11 11 13 2 2 2 11 2 2 20 4 14 15 8 . 5 11 34 5 25 15 16 19 5 Cannons 64 | . . . . . . . . . . 1 . 2 2 . . 1 5 14 . 6 1 . 7 25 AOE 39 | . 5 . 2 . . . 5 . . . 3 . 4 . . 4 . . . . 3 4 5 4 Classes Destroyed 30 | . 6 1 2 . 2 1 3 . . 3 1 1 . 1 . 2 1 3 . . . 1 . 2 Worker 12 | . 1 2 1 . . . . . . 3 . . . . . . . 1 . . 2 . 1 1 Builder 11 | . . . 3 . . . . . . . 1 . 2 . . 1 . 2 . . 1 . 1 . Tunneler 2 | . . . . . . . 1 . . . . . 1 . . . . . . . . . . . Hauler 11 | . 1 . 3 . . . . . . . . . . . . 4 . . 1 . 2 . . . Recycler 5 | . 1 . . 2 . . . . . . 1 . . . . 1 . . . . . . . . Mechanic 2 | . . . . . . . . . . . 2 . . . . . . . . . . . . . Operator 10 | . 1 1 . . . . . . 6 . . . . . . . 2 . . . . . . . Drone 1 | . . . . . . . . . . . . . . . . . . . . . . . . 1 Watcher 9 | . . . 1 . . . . . . . . . . . . . 3 1 . . 1 . 3 . Swarmer 48 | . 5 . 4 . . . 3 . . . . 1 5 . . 3 . 4 . 9 3 . 5 6 Cutter 5 | . . . . . . . . . . . . . . . . . . . . . . 5 . . Saboteur 4 | . . . . . . . . . . 1 . . . 2 . . . . . . . . 1 . Grunt 111 | . 11 7 4 . . . 5 . . 16 3 8 10 1 . . 3 12 4 8 10 3 3 3 Brawler 12 | . . . . . . . 1 . . . . 1 . . . 1 2 1 . 2 . . 4 . Duelist 9 | . . . . . . . . . . 1 1 2 . . . . 1 . . 1 . 1 1 1 Protector 3 | . . . . . . . . . . . . . . . . . . 2 . 1 . . . . Researcher 2 | . . . . . . . . . . . . . . . . . . 2 . . . . . . Sentry 43 | . . 4 7 2 . . 5 . 2 . 1 . 2 1 . . . 6 2 5 1 2 3 . Demolisher 4 | . . . . . . . . . . . . . . 1 . 2 . . . 1 . . . . Specialist 1 | . . . . . . . . . . . . . . . . 1 . . . . . . . . Hunter 21 | . . . . . . . 2 . . 1 . 3 4 . . . 2 2 . . 2 2 2 1 Programmer 59 | . . . . . . 2 . . . . 2 . . 3 . . 8 17 . 3 3 5 13 3 Heavy 2 | . . . . . . . . . . 1 . . . . . . . 1 . . . . . . Behemoth 3 | . . . . . . . . . . . . 1 . . . . . . . 2 . . . . Cetus Guard 2 | . . . . . . . . 2 . . . . . . . . . . . . . . . . S7 Guard 4 | . . . . . . . . . . . . . . . . . . 4 . . . . . . Enhanced Grunt 1 | . . . . . . . . . 1 . . . . . . . . . . . . . . . Enhanced Q-Series 25 | . . . . . . . . . . . . . . . . . . . . . . . . 25 Lightning 1 | . . . . . . . . . . 1 . . . . . . . . . . . . . . Striker 6 | . . . . . . . . . . . . . . . . 4 . . . . . 2 . . Executioner 4 | . . . . . . . . . . . . . . . . . . 4 . . . . . . Fortress 1 | . . . . . . . . . . . . . . . . . 1 . . . . . . . Explorer 1 | . . . . . 1 . . . . . . . . . . . . . . . . . . . Scrapper 1 | . . . . . 1 . . . . . . . . . . . . . . . . . . . Guerrilla 2 | . . . . . . . . 1 1 . . . . . . . . . . . . . . . Best Kill Streak 12 | . 6 6 7 3 1 1 6 2 5 7 5 5 6 5 . 8 5 10 3 7 12 6 8 5 Combat Bots Only 10 | . 4 5 5 1 1 1 6 2 2 6 4 5 6 5 . 8 4 10 3 7 7 6 8 5 Max Kills in Single Turn 4 | . 3 2 1 1 1 1 4 1 1 2 4 2 4 1 . 2 1 2 2 3 3 4 4 2 Gunslinging 2 | . . . . . . . 1 . . 1 . 1 1 . . . . 1 . 2 1 . . . Exploded 4 | . 2 . 1 . . . 4 . . . 3 . 4 . . 2 . . . . 3 4 4 2 Melee . | . . . . . . . . . . . . . . . . . . . . . . . . . Uniques/NPCs Destroyed 2 | . . . . . . . . 1 . . . . . . . . . . . . . . . 1 A7 (-6/Cetus) MAIN.C Shell (-1/Command) Combat | -11 -10 -9 -9 -9 -9 -6 -6 -6 -6 -6 -5 -5 -4 -4 -4 -3 -3 -3 -2 -2 -2 -2 -1 -1 -------- Run | Yrd Mat Mat Sto Rec Scr Fac Ext Cet Arc Hub Fac Gar Fac Arm Lab Res Qua Sec Res Gar Res Gar Acc Com Hostile Shots Fired 2353 | . 64 49 82 10 1 6 154 31 2 152 53 74 210 149 . 67 116 349 10 104 128 94 207 241 Missed 746 | . 19 16 19 3 1 1 51 10 . 44 11 32 65 51 . 32 39 119 2 19 49 23 77 63 Hits 1607 | . 45 33 63 7 . 5 103 21 2 108 42 42 145 98 . 35 77 230 8 85 79 71 130 178 Melee 26 | . . . . . . . . . . . . 5 . . . 2 7 . . 3 . 9 . . Projectile 1581 | . 45 33 63 7 . 5 103 21 2 108 42 37 145 98 . 33 70 230 8 82 79 62 130 178 AOE 13 | . . . . . . . . . . . . . . 2 . 4 . . . . . 2 . 5 Critical Strikes 69 | . . . 3 . . . . 6 . 9 2 2 4 7 . . 7 9 . 2 1 4 1 12 Actively Blocked 8 | . . . . . . . . . . . . . . . . . . . . . . 4 . 4 Part Disruptions 14 | . . . . . . . . . . . . . . 1 . . . . . . . . 1 12 Damage Taken 24114 | . 537 452 780 94 . 73 975 376 45 2490 811 755 2184 1357 . 1015 1148 2131 94 1296 1080 1431 1845 3145 Core 3266 | . 132 80 53 14 . . 115 66 . 122 49 53 163 60 . 79 150 581 . 102 60 256 761 370 Absorbed by Shields 7484 | . . . . . . . 156 119 . . . 144 567 42 . 66 33 1590 99 826 610 372 587 2273 Reduced by Siege Mode 280 | . . . . . . . . . . 88 . 24 . . . . . . . . . . . 168 Redirected to Core 162 | . . . . . . . . . . . . . . . . . 86 76 . . . . . . Ignored by Resistances 6711 | . . . . . . . . . . . 173 . 60 685 . . 665 2541 . 119 116 554 1234 564 Regen/Repaired (Parts) 5886 | . . . 150 . . . 128 54 . 257 1382 72 738 100 45 59 622 725 72 343 345 414 296 84 Core Remaining (%) 68 | 100 47 . . . 63 . . . . 64 . 89 . . 100 . . 30 . . . 71 . 48 Volleys Fired 1407 | . 54 36 59 8 6 17 35 17 25 73 56 91 50 44 29 41 71 267 10 85 45 33 135 120 Largest 6 | . 2 2 2 2 2 4 4 4 4 4 4 4 4 4 1 4 4 4 5 6 6 6 6 6 Hottest 700 | . 100 40 123 43 85 169 169 180 138 183 245 188 253 230 120 315 373 413 505 570 545 584 587 700 Shots Fired 3818 | . 100 72 115 16 11 27 128 63 84 238 84 208 161 76 29 123 170 660 45 308 173 167 323 437 Gun 2767 | . 92 72 110 16 10 10 122 62 84 210 31 155 148 49 . 90 121 468 38 266 145 163 189 116 Cannon 990 | . . . . . 1 17 2 . . 27 51 53 12 27 29 30 48 181 7 42 24 3 119 317 Launcher 29 | . 5 . 2 . . . 4 . . 1 2 . 1 . . 3 . . . . 4 1 4 2 Special 32 | . 3 . 3 . . . . 1 . . . . . . . . 1 11 . . . . 11 2 Kinetic 1043 | . 88 72 110 16 10 10 116 61 84 202 31 128 98 17 . . . . . . . . . . Thermal 2066 | . 7 . 3 . 1 17 8 1 . 35 51 80 62 59 29 120 169 397 7 181 105 110 261 363 Explosive 15 | . 5 . 2 . . . 4 . . 1 2 . 1 . . . . . . . . . . . Electromagnetic 18 | . . . . . . . . . . . . . . . . 3 . . . 3 4 2 4 2 Slashing 650 | . . . . . . . . . . . . . . . . . . 252 38 124 64 55 47 70 Robot Hit Streak 80 | . 6 18 15 14 11 8 8 7 9 18 23 15 15 21 . 20 15 42 18 51 15 39 20 80 Robot Miss Streak 5 | . 4 2 2 2 2 1 3 2 3 4 2 4 5 2 . 5 3 3 2 2 3 1 3 2 Penetration Max 1 | . . . . . . . 1 1 1 1 1 1 1 1 . . . 1 1 1 1 1 1 1 Secondary Targets 49 | . . 1 1 . . . 1 1 . 6 1 1 3 5 . 1 2 4 . 8 8 4 2 . Max Gunslinging Chain 3 | . . 1 1 . . . 1 1 . 1 1 1 1 1 . 1 1 1 . 3 2 1 1 . Shots Hit Robots 2423 | . 55 56 84 12 8 13 79 56 52 140 41 99 103 43 . 85 111 465 29 204 109 117 156 306 Core Hits 1055 | . 32 27 40 5 4 5 45 24 22 61 22 35 54 16 . 39 43 131 19 93 64 56 87 131 Critical Kills 35 | . . . . . . . 1 . 4 4 . 4 2 . . . 2 6 1 . 1 . 3 7 Critical Parts Destroyed 44 | . . . . . . 1 1 1 3 7 . 7 12 2 . . . 8 . . . . 1 1 Critical Strikes 126 | . . . . . . 1 4 2 7 11 . 12 16 2 . . 2 25 2 16 7 4 6 9 Burn 18 | . . . . . . . 1 . . . . . . . . . . . . 11 4 2 . . Meltdown 12 | . . . . . . . . . . . . . . . . . . 3 1 . 1 . . 7 Destroy 72 | . . . . . . 1 3 1 7 11 . 12 16 2 . . 2 12 . . . . 4 1 Sever 24 | . . . . . . . . 1 . . . . . . . . . 10 1 5 2 2 2 1 Melee Attacks 18 | . . . . . 2 . . 13 . . . . . . . . 3 . . . . . . . Kinetic 3 | . . . . . . . . . . . . . . . . . 3 . . . . . . . Impact 2 | . . . . . 2 . . . . . . . . . . . . . . . . . . . Slashing 13 | . . . . . . . . 13 . . . . . . . . . . . . . . . . Piercing . | . . . . . . . . . . . . . . . . . . . . . . . . . Sneak Attacks 13 | . . . . . . . . 13 . . . . . . . . . . . . . . . . Combat Hostiles . | . . . . . . . . . . . . . . . . . . . . . . . . . Follow-up Attacks . | . . . . . . . . . . . . . . . . . . . . . . . . . Damage Inflicted 85200 | . 904 748 1239 211 138 376 2896 1959 1520 3983 2010 2792 3390 1562 . 3246 4102 15507 1104 6693 3631 4220 6257 16712 Guns 57155 | . 701 739 1053 168 138 214 1977 1070 1520 3276 781 2538 2822 1407 . 2221 3188 11847 998 6016 3274 3891 4164 3152 Cannons 22625 | . . . . . . 143 64 . . 517 461 254 175 155 . 627 827 3628 106 677 143 . 1569 13279 Explosions 3992 | . 185 . 136 . . . 813 . . 148 768 . 338 . . 368 . . . . 214 309 432 281 Melee 976 | . . . . . . . . 889 . . . . . . . . 87 . . . . . . . Ramming 428 | . 18 9 26 43 . 19 42 . . 42 . . 55 . . 30 . 32 . . . 20 92 . Kinetic 15738 | . 668 739 1053 168 138 214 1891 1039 1520 3061 781 2181 1737 461 . . 87 . . . . . . . Thermal 48503 | . 33 . 24 . . 143 150 31 . 732 461 611 1260 1101 . 2848 4015 9036 106 3836 2166 2947 4777 14226 Explosive 2178 | . 185 . 136 . . . 813 . . 1 705 . 338 . . . . . . . . . . . Electromagnetic 1692 | . . . . . . . . . . 147 63 . . . . 368 . . . 76 214 133 410 281 Impact . | . . . . . . . . . . . . . . . . . . . . . . . . . Slashing 16661 | . . . . . . . . 889 . . . . . . . . . 6439 998 2781 1251 1120 978 2205 Piercing . | . . . . . . . . . . . . . . . . . . . . . . . . . Highest Corruption 21 | . 2 . . . . . . 17 21 5 1 1 8 10 10 1 2 4 . . . . . . Average Corruption 4 | . 2 . . . . . . 16 12 4 1 1 7 8 10 1 1 3 . . . . . . Corruption Purged 25 | . . . . . . . . . 21 . . . . . . . . 4 . . . . . . Corruption Blocked . | . . . . . . . . . . . . . . . . . . . . . . . . . Effects 214 | . 2 . . . . . . 26 30 13 10 9 3 18 15 5 22 61 . . . . . . Message Errors 56 | . . . . . . . . 7 5 4 2 . . 8 5 3 5 17 . . . . . . Matter Fused 49 | . . . . . . . . 7 3 3 1 7 1 5 5 1 6 10 . . . . . . Heat Flow Errors 25 | . 2 . . . . . . 3 3 2 3 2 . . 3 1 1 5 . . . . . . Energy Discharges 17 | . . . . . . . . 3 2 . 1 . 1 2 . . 2 6 . . . . . . Parts Fused 2 | . . . . . . . . 1 . . . . . . . . 1 . . . . . . . Data Loss (minor) 35 | . . . . . . . . 4 6 3 2 . . 2 2 . 4 12 . . . . . . Data Loss (major) 4 | . . . . . . . . 1 2 1 . . . . . . . . . . . . . . Misfires 3 | . . . . . . . . . 1 . . . 1 . . . . 1 . . . . . . Alerts 6 | . . . . . . . . . 1 . 1 . . . . . 1 3 . . . . . . Weapon Failures 17 | . . . . . . . . . 7 . . . . 1 . . 2 7 . . . . . . Overload Shots . | . . . . . . . . . . . . . . . . . . . . . . . . . Overflow Damage 937 | . . . . . . . 4 68 . 61 14 . 10 . . 12 85 182 . . . . 105 396 Projectiles 773 | . . . . . . . . . . 35 10 . . . . 12 85 182 . . . . 53 396 Explosions 34 | . . . . . . . 4 . . 26 4 . . . . . . . . . . . . . Melee 130 | . . . . . . . . 68 . . . . 10 . . . . . . . . . 52 . Knockbacks 2 | . 1 . . . . . 1 . . . . . . . . . . . . . . . . . Impact 2 | . 1 . . . . . 1 . . . . . . . . . . . . . . . . . Kinetic . | . . . . . . . . . . . . . . . . . . . . . . . . . Secondary . | . . . . . . . . . . . . . . . . . . . . . . . . . Self-Inflicted Damage 378 | . 14 . . . . . . . . 141 36 . . . . 34 . . . . . 153 . . Shots 13 | . 1 . . . . . . . . 2 1 . . . . 3 . . . . . 6 . . Rammed 13 | . . 2 5 3 . . . . . 3 . . . . . . . . . . . . . . Targets Rammed 34 | . 3 3 6 5 . 2 3 . . 3 . . 2 . . 2 . 3 . . . 1 1 . Kicked 17 | . 3 . . . . 2 3 . . . . . 2 . . 2 . 3 . . . 1 1 . Crushed 4 | . . 1 1 2 . . . . . . . . . . . . . . . . . . . . Highest Temperature 359 | . 229 . 13 . 6 18 36 233 359 187 330 359 276 173 173 81 25 282 218 256 218 218 253 253 Average Temperature 116 | . 27 . 13 . 4 12 12 107 128 55 97 80 88 46 50 36 23 123 154 154 167 159 136 147 Received Heat Transfer 3510 | . 240 183 255 36 . . 218 . . 564 162 98 242 299 . 94 99 220 16 362 97 58 66 201 Thermoelectric Energy+ 17978 | . . . . . . . . . . . . . . . . . . 978 463 2581 1372 1134 3707 7743 Effects 41 | . . . . . . . . . 1 . 2 2 3 . . . . 3 1 7 3 2 12 5 Energy Bleed 9 | . . . . . . . . . 1 . . . . . . . . . . 2 . 2 1 3 Interference 30 | . . . . . . . . . . . 1 1 3 . . . . 3 1 5 3 . 11 2 Short Circuit 1 | . . . . . . . . . . . 1 . . . . . . . . . . . . . Damage (minor) 1 | . . . . . . . . . . . . 1 . . . . . . . . . . . . Siege Activations 14 | . . . . . . . . . . 5 . 3 . . . . . . . . . . . 6 Total Turns 258 | . . . . . . . . . . 110 . 44 . . . . . . . . . . . 104 Longest Duration 39 | . . . . . . . . . . 37 . 24 . . . . . . . . . . . 39 Martial Activations . | . . . . . . . . . . . . . . . . . . . . . . . . . Shielding Activations . | . . . . . . . . . . . . . . . . . . . . . . . . . Robots Disrupted 1 | . . . . . . . . . . . . . . . . . . . . . . . 1 . Combat Hostiles 1 | . . . . . . . . . . . . . . . . . . . . . . . 1 . Robots Corrupted . | . . . . . . . . . . . . . . . . . . . . . . . . . Combat Hostiles . | . . . . . . . . . . . . . . . . . . . . . . . . . Parts Fried 10 | . . . . . . . . . . . 1 . . . . . . . . 1 1 1 4 2 Impact Corruptions 2 | . . . . . . . . . . . . . 1 . . . . . . . . . 1 . Robots Melted 17 | . . . . . . . . . . . . . . . . 1 . 5 1 1 1 . 1 7 Combat Hostiles 16 | . . . . . . . . . . . . . . . . 1 . 5 1 1 . . 1 7 Parts Melted 147 | . . . 1 . . . 2 . . . . . 2 1 . 2 7 27 3 19 10 6 19 48 Heat Transferred 44375 | . 75 . 50 . . 148 374 37 . 259 . 666 1443 1110 . 3256 4070 7911 111 5327 3034 2927 4860 8717 Parts Sabotaged . | . . . . . . . . . . . . . . . . . . . . . . . . . Parts Stolen . | . . . . . . . . . . . . . . . . . . . . . . . . . Parts Stripped 18 | . . . . . . . . . . . . . . . . . 18 . . . . . . . Power Chain Reactions 7 | . . . . . . . . . . 2 1 . . . . . . . . . 1 2 1 . Alert | -11 -10 -9 -9 -9 -9 -6 -6 -6 -6 -6 -5 -5 -4 -4 -4 -3 -3 -3 -2 -2 -2 -2 -1 -1 ------- Run | Yrd Mat Mat Sto Rec Scr Fac Ext Cet Arc Hub Fac Gar Fac Arm Lab Res Qua Sec Res Gar Res Gar Acc Com Maximum Alert Level 5 | . 1 . 1 . . . 2 2 1 4 3 4 2 2 . 2 1 4 3 5 5 5 4 3 Low Security (%) 28 | 100 76 100 34 100 . 100 53 . 30 3 . . . . . 74 62 14 . . . . . 48 Level 1 16 | . 23 . 65 . . . 6 49 69 4 . 6 . 14 . 21 37 47 . . . . . . Level 2 20 | . . . . . . . 40 50 . 4 72 42 100 85 . 4 . 19 62 6 . . 6 . Level 3 19 | . . . . . . . . . . 44 27 43 . . . . . 9 37 28 . . 84 51 Level 4 11 | . . . . . . . . . . 43 . 7 . . . . . 9 . 41 91 62 9 . Level 5 3 | . . . . . . . . . . . . . . . . . . . . 23 8 37 . . High Security . | . . . . . . . . . . . . . . . . . . . . . . . . . Max Security . | . . . . . . . . . . . . . . . . . . . . . . . . . Peak Influence 2138 | . 239 145 354 166 . 32 680 494 347 1490 751 1135 683 630 . 458 384 1221 793 2138 1620 1795 1174 844 Initial 1202 | . . 74 53 123 . . 4 376 188 43 726 380 595 327 . . 255 84 674 572 1202 1189 1076 748 Average 570 | . 152 77 207 96 . 5 270 394 242 1018 623 690 567 484 . 99 192 448 706 1342 1369 1524 920 566 Influence Increases 17056 | . 576 305 754 318 . 111 1214 596 263 2049 467 755 720 540 . 850 741 1863 199 1596 672 636 1385 446 Destroy 0b10 Robot/C 7920 | . 320 220 420 80 . 40 560 260 80 700 140 320 420 160 . 360 340 1040 120 620 380 400 640 300 Destroy 0b10 Robot/NC 365 | . 20 15 40 10 . . 20 10 30 20 20 . 15 . . 30 25 35 5 10 30 . 25 5 Destroy Leader 1366 | . 52 70 118 . . 20 76 20 . 130 30 30 70 40 . 98 66 192 32 60 76 30 126 30 Allied During Kill 1572 | . . . 79 16 . 2 496 283 110 414 . . . . . 166 . 6 . . . . . . Trap Triggered on 0b10 10 | . . . . . . . . . . . . . . . . . 10 . . . . . . . Successful Hack 563 | . 17 . 32 2 . 12 12 . . . 116 26 32 12 . 69 100 24 . 7 39 . 63 . Select Force Hacks 320 | . 60 . . 210 . . . . . 50 . . . . . . . . . . . . . . Disable Machine 1170 | . 60 . 15 . . 30 15 . 30 210 75 30 90 30 . 15 135 240 15 30 45 . 75 30 Anti-Garrison Action 1050 | . . . . . . . . . . 150 . 200 . . . . . . . 650 . 50 . . Destroy Structure 1535 | . 47 . 20 . . 7 35 23 13 195 86 104 78 28 . 112 50 176 27 159 102 36 201 36 Lose Combat Pursuer 1185 | . . . 30 . . . . . . 180 . 45 15 270 . . 15 150 . 60 . 120 255 45 Influence Decreases 16222 | . 398 354 566 622 13 100 553 798 608 690 1408 163 1186 612 597 395 1046 814 635 221 1224 427 2011 781 Entered New Map 6909 | . . 104 76 194 13 . 7 296 282 82 758 163 540 342 597 . 200 66 525 191 936 397 719 421 Time Decay 7153 | . 388 240 350 428 . 100 426 362 326 458 490 . 486 230 . 285 526 708 110 . 278 . 612 350 Lost Part 260 | . 10 10 20 . . . . . . 30 10 . 10 40 . 10 10 . . 30 10 30 30 10 Lost Ally 650 | . . . 120 . . . 120 140 . 120 . . . . . 100 10 40 . . . . . . Purge Threat 1250 | . . . . . . . . . . . 150 . 150 . . . 300 . . . . . 650 . Squads Dispatched 87 | . 3 2 4 . . 1 3 . . 13 4 . 9 1 . 5 4 13 2 . 5 . 14 4 Investigation 12 | . 2 1 . . . . 2 . . 2 . . 1 . . 1 . . . . 2 . 1 . Extermination 25 | . . . . . . 1 . . . 2 1 . 2 1 . . 3 8 1 . 1 . 3 2 Reinforcement 19 | . 1 1 1 . . . 1 . . 5 . . . . . 4 . 3 . . 1 . 1 1 Assault 22 | . . . . . . . . . . 3 3 . 6 . . . . 2 . . 1 . 6 1 Garrison 9 | . . . 3 . . . . . . 1 . . . . . . 1 . 1 . . . 3 . Intercept . | . . . . . . . . . . . . . . . . . . . . . . . . . Searches Triggered . | . . . . . . . . . . . . . . . . . . . . . . . . . Construction Impeded 2 | . . . . . . . 1 . . . . . . . . . . 1 . . . . . . Haulers Reinforced 2 | . . . . . . . . . . . . . . . . 1 . . . . 1 . . . Active Scanning Responses . | . . . . . . . . . . . . . . . . . . . . . . . . . Cargo Convoy Interrupts . | . . . . . . . . . . . . . . . . . . . . . . . . . Stealth | -11 -10 -9 -9 -9 -9 -6 -6 -6 -6 -6 -5 -5 -4 -4 -4 -3 -3 -3 -2 -2 -2 -2 -1 -1 --------- Run | Yrd Mat Mat Sto Rec Scr Fac Ext Cet Arc Hub Fac Gar Fac Arm Lab Res Qua Sec Res Gar Res Gar Acc Com Distress Signals 44 | . 1 4 4 . . . 4 2 . 6 . . 1 . . 7 . 4 1 . 1 . 2 7 Communications Jammed 51 | . . . . . . . . . . . . . 46 1 . 2 2 . . . . . . . Distress Signals 51 | . . . . . . . . . . . . . 46 1 . 2 2 . . . . . . . Times Spotted 644 | . 25 22 24 4 9 6 30 11 19 50 11 17 37 25 . 36 27 77 7 36 24 28 64 55 Peak Tracking Total 10 | . 4 7 6 2 3 2 8 5 2 10 4 4 8 9 . 7 3 6 3 5 5 8 9 7 Tactical Retreats 50 | . . . 2 . . . . . . 6 . 3 1 8 . . 1 8 . 4 . 4 10 3 Traps | -11 -10 -9 -9 -9 -9 -6 -6 -6 -6 -6 -5 -5 -4 -4 -4 -3 -3 -3 -2 -2 -2 -2 -1 -1 ------- Run | Yrd Mat Mat Sto Rec Scr Fac Ext Cet Arc Hub Fac Gar Fac Arm Lab Res Qua Sec Res Gar Res Gar Acc Com Traps Triggered 37 | . 3 . . . . . 1 . . . . 6 2 1 . 2 . 2 1 10 1 2 6 . Indirectly . | . . . . . . . . . . . . . . . . . . . . . . . . . Trap Hack Attempts . | . . . . . . . . . . . . . . . . . . . . . . . . . Triggered . | . . . . . . . . . . . . . . . . . . . . . . . . . Disarmed . | . . . . . . . . . . . . . . . . . . . . . . . . . Reprogrammed 10 | . . . . . . . 3 . . . . . . 1 . . 6 . . . . . . . Reused 1 | . . . . . . . . . . . . . . . . . 1 . . . . . . . Traps Extracted . | . . . . . . . . . . . . . . . . . . . . . . . . . Installed 2 | . . . . . 2 . . . . . . . . . . . . . . . . . . . Triggered 1 | . . . . . . . . . . . . . . . . . 1 . . . . . . . Machines | -11 -10 -9 -9 -9 -9 -6 -6 -6 -6 -6 -5 -5 -4 -4 -4 -3 -3 -3 -2 -2 -2 -2 -1 -1 ---------- Run | Yrd Mat Mat Sto Rec Scr Fac Ext Cet Arc Hub Fac Gar Fac Arm Lab Res Qua Sec Res Gar Res Gar Acc Com Machines Disabled 98 | . 4 . 1 . 4 2 1 . 2 15 5 4 7 2 1 1 9 19 1 9 3 1 5 2 Max in Single Turn 11 | . 2 . 1 . 1 1 1 . 1 11 1 1 2 1 1 . 1 2 1 2 1 1 1 1 Garrison Access 8 | . . . . . . . . . . 1 . . 1 . . 1 1 . . . 1 . 3 . Garrison Relay 7 | . . . . . . . . . . . . 2 . . . . . . . 4 . 1 . . Phase Generator 1 | . . . . . . . . . . . . . . . . . . . . 1 . . . . Network Hub 2 | . . . . . . . . . . 2 . . . . . . . . . . . . . . Machines Repaired . | . . . . . . . . . . . . . . . . . . . . . . . . . Machines Dismantled . | . . . . . . . . . . . . . . . . . . . . . . . . . Machines Sabotaged 1 | . . . . . . . . . . 1 . . . . . . . . . . . . . . Overloaded Fab Kills . | . . . . . . . . . . . . . . . . . . . . . . . . . Hacking | -11 -10 -9 -9 -9 -9 -6 -6 -6 -6 -6 -5 -5 -4 -4 -4 -3 -3 -3 -2 -2 -2 -2 -1 -1 --------- Run | Yrd Mat Mat Sto Rec Scr Fac Ext Cet Arc Hub Fac Gar Fac Arm Lab Res Qua Sec Res Gar Res Gar Acc Com Machines Accessed 110 | . 4 4 4 12 3 1 11 . . 2 11 2 5 4 . 10 7 5 2 4 8 . 10 1 Terminals 65 | . 2 3 4 5 . 1 10 . . 2 6 2 2 4 . 4 3 3 . 4 4 . 5 1 Fabricators 4 | . . . . . . . . . . . . . 1 . . 2 . . . . 1 . . . Repair Stations 8 | . . . . . . . . . . . 3 . 1 . . . 1 2 . . . . 1 . Recycling Units 12 | . 2 . . 7 . . 1 . . . . . . . . 1 . . 1 . . . . . Scanalyzers 8 | . . 1 . . . . . . . . 1 . . . . 2 2 . . . 1 . 1 . Garrison Access 10 | . . . . . . . . . . . 1 . 1 . . 1 1 . 1 . 2 . 3 . Total Hacks 359 | . 7 9 11 24 24 2 20 . . 5 46 9 27 26 . 40 30 17 3 12 19 . 27 1 Successful 141 | . 6 2 7 15 24 1 6 . . 2 14 3 12 8 . 8 10 4 3 1 6 . 9 . Failed 213 | . 1 6 4 9 . 1 14 . . 3 31 6 15 18 . 31 19 13 . 11 12 . 18 1 Catastrophic 54 | . . . . 2 . . 4 . . . 8 . 4 5 . 15 5 2 . 1 2 . 6 . Database Lockouts 5 | . . 1 . . . . . . . . 1 . . . . 1 1 . . . 1 . . . Manual 116 | . 6 4 7 22 . 1 6 1 . 5 10 3 10 17 . 14 9 1 . . . . . . Terminals 228 | . 5 7 11 15 . 2 19 . . 5 27 9 13 26 . 20 20 11 . 12 11 . 14 1 Fabricators 11 | . . . . . . . . . . . . . 4 . . 5 . . . . 2 . . . Repair Stations 38 | . . . . . . . . . . . 17 . 9 . . . 4 6 . . . . 2 . Recycling Units 17 | . 2 . . 9 . . 1 . . . . . . . . 4 . . 1 . . . . . Scanalyzers 30 | . . 2 . . . . . . . . 1 . . . . 10 5 . . . 4 . 8 . Garrison Access 11 | . . . . . . . . . . . 1 . 1 . . 1 1 . 2 . 2 . 3 . Terminal Hacks 73 | . 2 1 7 2 24 1 4 . . . 6 2 4 6 . 2 5 2 . 1 2 . 2 . Record 16 | . . . . . 16 . . . . . . . . . . . . . . . . . . . Part Schematic 2 | . . . . . . . . . . . 1 . 1 . . . . . . . . . . . Robot Analysis 11 | . . . . 2 7 . 1 . . . . . . . . 1 . . . . . . . . Prototype ID Bank 3 | . . . 3 . . . . . . . . . . . . . . . . . . . . . Open Door 7 | . . . 2 . . . 2 . . . . . . . . . . 2 . 1 . . . . Open DSF 1 | . . . . . . . . . . . . . . . . . . . . . 1 . . . Level Access Points 2 | . . . . . . . . . . . . . . . . . . . . . 1 . 1 . Branch Access Points 4 | . . 1 1 . . . . . . . 1 . 1 . . . . . . . . . . . Emergency Access Points 1 | . . . . . . . . . . . . 1 . . . . . . . . . . . . Terminal Index 3 | . 1 . . . . . . . . . 1 . . 1 . . . . . . . . . . Recycling Unit Index 1 | . 1 . . . . . . . . . . . . . . . . . . . . . . . Alert Level 1 | . . . . . . . . . . . 1 . . . . . . . . . . . . . Unreport Threat 5 | . . . . . . . . . . . 1 . 1 . . . 2 . . . . . 1 . Locate Traps 2 | . . . . . . . . . . . . . . . . . 2 . . . . . . . Reprogram Traps 3 | . . . . . . . 1 . . . . . . 1 . . 1 . . . . . . . Hauler Manifests 1 | . . . . . . . . . . . . . 1 . . . . . . . . . . . Registered Components 1 | . . . . . . . . . . . . . . . . 1 . . . . . . . . Zone Layout 7 | . . . 1 . . 1 . . . . 1 . . 4 . . . . . . . . . . Garrison Registry 1 | . . . . . . . . . . . . 1 . . . . . . . . . . . . Proto ID Catalog 1 | . . . . . 1 . . . . . . . . . . . . . . . . . . . Fabricator Hacks 2 | . . . . . . . . . . . . . 2 . . . . . . . . . . . Load Schematic 1 | . . . . . . . . . . . . . 1 . . . . . . . . . . . Build 1 | . . . . . . . . . . . . . 1 . . . . . . . . . . . Repair Station Hacks 14 | . . . . . . . . . . . 6 . 5 . . . 1 2 . . . . . . Scan Component 9 | . . . . . . . . . . . 3 . 3 . . . 1 2 . . . . . . Repair 5 | . . . . . . . . . . . 3 . 2 . . . . . . . . . . . Recycling Unit Hacks 1 | . . . . . . . . . . . . . . . . . . . 1 . . . . . Retrieve Components 1 | . . . . . . . . . . . . . . . . . . . 1 . . . . . Scanalyzer 13 | . . 1 . . . . . . . . . . . . . 3 3 . . . 2 . 4 . Insert Component 1 | . . . . . . . . . . . . . . . . 1 . . . . . . . . Retrieve Study 12 | . . 1 . . . . . . . . . . . . . 2 3 . . . 2 . 4 . Garrison Access Hacks 11 | . . . . . . . . . . . 1 . 1 . . 1 1 . 2 . 2 . 3 . Unlock Access 3 | . . . . . . . . . . . 1 . . . . . . . 1 . 1 . . . Seal Access 7 | . . . . . . . . . . . . . 1 . . 1 1 . . . 1 . 3 . Coupler Status 1 | . . . . . . . . . . . . . . . . . . . 1 . . . . . Unauthorized Hacks 27 | . 4 . . 13 . . 2 . . 2 1 1 . 2 . 2 . . . . . . . . Terminals 16 | . 2 . . 6 . . 1 . . 2 1 1 . 2 . 1 . . . . . . . . Track 2 | . . . . . . . . . . . . . . 2 . . . . . . . . . . Assimilate 1 | . . . . . . . . . . . 1 . . . . . . . . . . . . . Botnet 4 | . . . . 1 . . 1 . . . . 1 . . . 1 . . . . . . . . Skim 7 | . 2 . . 5 . . . . . . . . . . . . . . . . . . . . Sabotage 2 | . . . . . . . . . . 2 . . . . . . . . . . . . . . Fabricators . | . . . . . . . . . . . . . . . . . . . . . . . . . Repair Stations . | . . . . . . . . . . . . . . . . . . . . . . . . . Recycling Units 11 | . 2 . . 7 . . 1 . . . . . . . . 1 . . . . . . . . Tunnel 9 | . 2 . . 7 . . . . . . . . . . . . . . . . . . . . Scrapoids 2 | . . . . . . . 1 . . . . . . . . 1 . . . . . . . . Scanalyzers . | . . . . . . . . . . . . . . . . . . . . . . . . . Garrison Access . | . . . . . . . . . . . . . . . . . . . . . . . . . Data Cores Recovered 1 | . . . . . . . . . . . . . . . . . 1 . . . . . . . Used . | . . . . . . . . . . . . . . . . . . . . . . . . . Hacking Detections 76 | . 1 4 3 7 . 1 10 1 . 1 8 1 3 3 . 8 5 4 . 4 5 . 7 . Full Trace Events 5 | . . 1 . . . . 1 . . . . . 1 . . . . . . . 1 . 1 . Feedback Events 1 | . . . . . . . . . . . . . . . . . . . . . . . 1 . Corruption 1 | . . . . . . . . . . . . . . . . . . . . . . . 1 . Feedback Blocked . | . . . . . . . . . . . . . . . . . . . . . . . . . Robot Schematics Acquired 3 | . . . . . . . . . . . . . . . . . . 3 . . . . . . Robots Built . | . . . . . . . . . . . . . . . . . . . . . . . . . Authchips . | . . . . . . . . . . . . . . . . . . . . . . . . . Time . | . . . . . . . . . . . . . . . . . . . . . . . . . Total Robot Build Rating . | . . . . . . . . . . . . . . . . . . . . . . . . . Part Schematics Acquired 9 | . . . . . . . . . . . 1 . 1 . . . . 7 . . . . . . Parts Built 1 | . . . . . . . . . . . . . 1 . . . . . . . . . . . Authchips . | . . . . . . . . . . . . . . . . . . . . . . . . . Time 25 | . . . . . . . . . . . . . 25 . . . . . . . . . . . Total Part Build Rating 1 | . . . . . . . . . . . . . 1 . . . . . . . . . . . Part Studies Acquired 12 | . . 1 . . . . . . . . . . . . . 2 3 . . . 2 . 4 . Parts Repaired 5 | . . . . . . . . . . . 3 . 2 . . . . . . . . . . . Time 438 | . . . . . . . . . . . 206 . 232 . . . . . . . . . . . Parts Recycled . | . . . . . . . . . . . . . . . . . . . . . . . . . Recycled Matter . | . . . . . . . . . . . . . . . . . . . . . . . . . Retrieved Matter . | . . . . . . . . . . . . . . . . . . . . . . . . . Retrieved Components 1 | . . . . . . . . . . . . . . . . . . . 1 . . . . . Parts Scanalyzed . | . . . . . . . . . . . . . . . . . . . . . . . . . Part Schematics Acquired . | . . . . . . . . . . . . . . . . . . . . . . . . . Parts Damaged . | . . . . . . . . . . . . . . . . . . . . . . . . . Bothacking | -11 -10 -9 -9 -9 -9 -6 -6 -6 -6 -6 -5 -5 -4 -4 -4 -3 -3 -3 -2 -2 -2 -2 -1 -1 ------------ Run | Yrd Mat Mat Sto Rec Scr Fac Ext Cet Arc Hub Fac Gar Fac Arm Lab Res Qua Sec Res Gar Res Gar Acc Com Used RIF Installer 1 | . . . . . . . . . . . . 1 . . . . . . . . . . . . Robots Hacked 13 | . . . . . . . . . . . . . . . . . 1 7 . . . . 4 1 Non-combat 6 | . . . . . . . . . . . . . . . . . 1 1 . . . . 4 . Combat 7 | . . . . . . . . . . . . . . . . . . 6 . . . . . 1 Robot Hacks Applied 19 | . . . . . . . . . . . . . . . . . 1 9 . . . . 8 1 purge_threat 5 | . . . . . . . . . . . . . . . . . . . . . . . 5 . reprogram_traps 1 | . . . . . . . . . . . . . . . . . . . . . . . 1 . map_route 2 | . . . . . . . . . . . . . . . . . . . . . . . 2 . redirect_shields 1 | . . . . . . . . . . . . . . . . . . 1 . . . . . . disable_scanner 2 | . . . . . . . . . . . . . . . . . . 2 . . . . . . locate_prototypes 1 | . . . . . . . . . . . . . . . . . . 1 . . . . . . report_analyses 2 | . . . . . . . . . . . . . . . . . . 2 . . . . . . formatsys_low 4 | . . . . . . . . . . . . . . . . . 1 3 . . . . . . formatsys_high 1 | . . . . . . . . . . . . . . . . . . . . . . . . 1 Relay Couplers Released 37 | . . . . . . . . . . . . 6 3 . . . . . . 15 2 8 3 . Machine Destruction 34 | . . . . . . . . . . . . 6 3 . . . . . . 15 2 5 3 . Programmers 3 | . . . . . . . . . . . . . . . . . . . . . . 3 . . Attached 6 | . . . . . . . . . . . . . . . . . 1 1 . . . . 3 1 Fabnet Peak Effective % . | . . . . . . . . . . . . . . . . . . . . . . . . . Robots Rewired 13 | . . . . . . . 11 . . . . . . . . . . . . 2 . . . . Allies Hacked . | . . . . . . . . . . . . . . . . . . . . . . . . . Hacks Repelled . | . . . . . . . . . . . . . . . . . . . . . . . . . Allies | -11 -10 -9 -9 -9 -9 -6 -6 -6 -6 -6 -5 -5 -4 -4 -4 -3 -3 -3 -2 -2 -2 -2 -1 -1 -------- Run | Yrd Mat Mat Sto Rec Scr Fac Ext Cet Arc Hub Fac Gar Fac Arm Lab Res Qua Sec Res Gar Res Gar Acc Com Total Allies 45 | . . . 10 . . . 18 5 . . . . . . . 5 1 3 . 2 . . . 1 Largest Group 15 | . . . 10 4 3 1 15 13 8 6 . . . . . 5 1 1 . 2 . . . 1 Highest-Rated Group 780 | . . . 88 40 32 8 569 780 570 435 . . . . . 320 36 49 . 75 . . . 219 Highest-Rated Ally 219 | . . . 16 16 16 8 159 159 96 96 . . . . . 64 36 49 . 46 . . . 219 Total Orders 19 | . . . . . 5 . . 3 2 2 . . . . . 1 3 1 . 1 . . . 1 STAY 9 | . . . . . 1 . . 2 1 2 . . . . . . 1 1 . 1 . . . . FOLLOW 4 | . . . . . 1 . . 1 1 . . . . . . . 1 . . . . . . . GUARD 1 | . . . . . . . . . . . . . . . . 1 . . . . . . . . AID 2 | . . . . . . . . . . . . . . . . . 1 . . . . . . 1 EXPLORE 1 | . . . . . 1 . . . . . . . . . . . . . . . . . . . RETURN 2 | . . . . . 2 . . . . . . . . . . . . . . . . . . . Ally Attacks 471 | . . . 35 15 22 9 118 66 15 89 . . . . . 90 . 2 . . . . . 10 Total Damage 11946 | . . . 345 188 196 33 2483 1968 524 3371 . . . . . 1646 . . . . . . . 1192 Kills 66 | . . . 6 3 2 . 15 14 2 16 . . . . . 7 . . . . . . . 1 Allies Corrupted 1 | . . . . . . . . . . 1 . . . . . . . . . . . . . . Allies Melted 4 | . . . . . 1 . . . . . . . . . . . . . . . . . . 3 Turrets Deployed 1 | . . . . . . . . . . 1 . . . . . . . . . . . . . . Intel | -11 -10 -9 -9 -9 -9 -6 -6 -6 -6 -6 -5 -5 -4 -4 -4 -3 -3 -3 -2 -2 -2 -2 -1 -1 ------- Run | Yrd Mat Mat Sto Rec Scr Fac Ext Cet Arc Hub Fac Gar Fac Arm Lab Res Qua Sec Res Gar Res Gar Acc Com Active Infowar (turns) 19060 | . . . . . 1 . 742 433 195 259 1200 1370 1266 361 43 1839 1183 2888 222 2356 600 534 2011 1557 Optics 8302 | . . . . . . . . . . . . . . . . . . 1022 222 2356 600 534 2011 1557 Sensors 4972 | . . . . . . . 742 433 195 259 1181 1 349 40 . . 80 33 . . . . 1536 123 Terrain 8687 | . . . . . . . . . . . . . . . 43 1839 1143 2683 164 1049 414 145 1207 . Structural 1 | . . . . . 1 . . . . . . . . . . . . . . . . . . . Jamming 4636 | . . . . . . . . . . . 395 1370 1266 361 . 1047 197 . . . . . . . Robot Analysis Total 11 | . . . . 2 7 . 1 . . . . . . . . 1 . . . . . . . . Derelict Logs Recovered . | . . . . . . . . . . . . . . . . . . . . . . . . . Drone Launches 2 | . . . . . 2 . . . . . . . . . . . . . . . . . . . Drone Recoveries 2 | . . . . . 2 . . . . . . . . . . . . . . . . . . . Exploration | -11 -10 -9 -9 -9 -9 -6 -6 -6 -6 -6 -5 -5 -4 -4 -4 -3 -3 -3 -2 -2 -2 -2 -1 -1 ------------- Run | Yrd Mat Mat Sto Rec Scr Fac Ext Cet Arc Hub Fac Gar Fac Arm Lab Res Qua Sec Res Gar Res Gar Acc Com Turns Passed 28999 | 5 1046 533 786 1042 2600 385 1241 835 731 1151 1288 1408 1277 497 431 1839 1460 3153 222 2356 611 534 2011 1557 Spaces Moved 15710 | 5 450 223 326 631 1159 214 675 431 206 472 588 738 581 249 234 1319 1001 1948 154 1031 385 374 1482 834 Core 253 | . . . . . 101 . . . . . . . . . 152 . . . . . . . . . Treads 4513 | . . 223 326 631 1058 108 . 292 206 467 586 377 . . . . . . . . . . . 239 Legs 10404 | 5 450 . . . . 106 675 139 . . . 361 578 240 82 1319 1001 1874 154 1031 385 266 1222 516 Wheels . | . . . . . . . . . . . . . . . . . . . . . . . . . Hover . | . . . . . . . . . . . . . . . . . . . . . . . . . Flight . | . . . . . . . . . . . . . . . . . . . . . . . . . Fastest Speed 50 | 120 120 160 160 160 50 135 135 135 160 160 160 120 120 120 50 104 107 105 109 109 106 106 108 108 Average Speed 135 | 120 187 160 160 160 187 148 135 151 160 160 160 141 120 120 74 109 107 108 109 168 111 134 112 130 Slowest Speed 350 | 120 190 160 160 160 350 270 135 160 160 160 240 210 120 120 120 120 108 173 175 175 176 178 178 320 Overloaded Moves . | . . . . . . . . . . . . . . . . . . . . . . . . . Propulsion Burnouts . | . . . . . . . . . . . . . . . . . . . . . . . . . Robots Hopped . | . . . . . . . . . . . . . . . . . . . . . . . . . Potential Cave-ins 3 | . . . . . . . . . . . . . . . . . . 1 . . . . 2 . Cave-ins Triggered . | . . . . . . . . . . . . . . . . . . . . . . . . . Teleports 24 | . . . . . . . . . . 5 2 . 3 9 . . . 2 . . . . 3 . Spacefolds 11 | . . . . . . . . . . . . . . . . . . 5 . . . . 4 2 Microwarps 40 | . . . . . . . . . . . . . . . . . . 4 . . . 9 22 5 Exploration Rate (%) 50 | 2 77 25 61 99 92 6 82 56 77 38 12 85 23 30 90 37 70 84 6 89 18 35 46 29 Regions Visited 24 Branch Regions 12 Pre-discovered Areas 16 | . 2 . . 11 3 . . . . . . . . . . . . . . . . . . . Known Exits Taken 15 | . . 1 1 . 1 1 1 1 1 1 1 . 1 . 1 1 . . 1 . 1 . 1 . Unknown Exits Taken 6 | 1 1 . . 1 . . . . . . . . . 1 . . 1 1 . . . . . . Scrap Searched 1 | . . . . . 1 . . . . . . . . . . . . . . . . . . . Spaces Dug 199 | . 2 . . . . 4 5 . . 6 22 20 5 8 22 6 12 29 1 6 6 7 31 7 Terrain Destroyed 1009 | . 68 . 14 . . 11 38 5 15 239 45 33 58 20 22 16 24 111 19 76 34 21 77 63 Melee . | . . . . . . . . . . . . . . . . . . . . . . . . . Projectile 591 | . 3 . . . . 11 2 5 15 25 36 31 45 20 22 16 24 111 19 23 30 13 77 63 AOE 415 | . 65 . 14 . . . 36 . . 214 9 . 13 . . . . . . 53 4 7 . . Terrain Rammed . | . . . . . . . . . . . . . . . . . . . . . . . . . Walls Destroyed . | . . . . . . . . . . . . . . . . . . . . . . . . . Machines Disabled . | . . . . . . . . . . . . . . . . . . . . . . . . . Actions | -11 -10 -9 -9 -9 -9 -6 -6 -6 -6 -6 -5 -5 -4 -4 -4 -3 -3 -3 -2 -2 -2 -2 -1 -1 --------- Run | Yrd Mat Mat Sto Rec Scr Fac Ext Cet Arc Hub Fac Gar Fac Arm Lab Res Qua Sec Res Gar Res Gar Acc Com Total 21038 | 4 545 331 468 645 1585 260 925 561 549 704 851 951 1051 387 474 1627 1253 2554 189 1497 481 362 1633 1151 Wait 2514 | . 5 37 39 . 336 . 48 30 294 107 170 62 350 34 148 181 90 187 4 237 8 4 48 95 Move 15220 | 4 449 222 325 630 1158 213 674 430 205 471 588 737 580 248 233 1318 1000 1882 154 1030 384 274 1249 762 Hop . | . . . . . . . . . . . . . . . . . . . . . . . . . Pick Up 324 | . 15 8 4 . 28 9 11 12 2 6 11 12 18 10 23 12 17 42 7 11 6 7 26 27 Fast Attach 264 | . 3 4 5 1 12 4 6 15 11 10 4 17 7 17 13 26 11 22 2 11 5 8 23 27 Attach 144 | . 1 5 3 . 1 6 2 3 . 6 4 1 4 4 4 2 7 29 4 5 2 4 28 19 Detach 51 | . 2 1 . . 3 1 . 2 1 4 . . 1 2 3 . . 4 3 1 . 3 8 12 Swap 380 | . 6 3 12 . 8 1 15 8 2 15 11 5 21 10 2 9 26 66 3 22 20 16 64 35 Drop 474 | . 7 12 15 1 29 7 18 31 9 9 7 22 18 17 19 36 27 52 2 18 11 12 41 54 Fire 1407 | . 54 36 59 8 6 17 35 17 25 73 56 91 50 44 29 41 71 267 10 85 45 33 135 120 Melee 18 | . . . . . 2 . . 13 . . . . . . . . 3 . . . . . . . Ram . | . . . . . . . . . . . . . . . . . . . . . . . . . Kick 17 | . 3 . . . . 2 3 . . . . . 2 . . 2 . 3 . . . 1 1 . Crush 17 | . . 3 6 5 . . . . . 3 . . . . . . . . . . . . . . Escape Stasis 50 | . . . . . . . 6 . . . . 4 . . . . . . . 30 . . 10 . Rewire 155 | . . . . . . . 107 . . . . . . . . . 1 . . 47 . . . . Trap 2 | . . . . . 2 . . . . . . . . . . . . . . . . . . . Miscellaneous 1 | . . . . . . . . . . . . . . 1 . . . . . . . . . . Route ------- -11/Scrapyard -10/Materials (discovered 3 exits: *Mat x2 / [*Min]) -9/Materials (discovered 2 exits: Min / *Sto) -9/Storage -9/Recycling (discovered 2 exits: [*Fac] / *Scr) -9/Scraptown (discovered 2 exits: *Fac x2) -6/Factory (discovered 5 exits: Fac x3 / Low / *Ext) -6/Extension (discovered 2 exits: *Fac / *Cet) -6/Cetus (discovered 2 exits: *Fac / *Arc) -6/Archives (discovered 3 exits: *Fac / *Hub x2) -6/Hub_04(d) -5/Factory (discovered 3 exits: Upp x2 / Gar) -5/Garrison (discovered 3 exits: *Fac x3) -4/Factory (discovered 6 exits: Res x3 / Upp x2 / *Arm) -4/Armory (discovered 2 exits: Res / [*Lab]) -4/Lab -3/Research (discovered 3 exits: *Res / *Qua x2) -3/Quarantine (discovered 3 exits: *Res / *Sec / [*Frg]) -3/Section 7 -2/Research -2/Garrison (discovered 3 exits: *Res x3) -2/Research (discovered 4 exits: Acc x3 / Gar) -2/Garrison -1/Access (discovered 2 exits: Sur / *Com) -1/Command (discovered 2 exits: Sur x2) By MAIN.C's Side History --------- Turn | Location | Event 1 | -11/Scrapyard | Discovered new exit (range 3) 6 | -11/Scrapyard | Entered Materials 202 | -10/Materials | Discovered new exit (range 12) 306 | -10/Materials | Build established: Mutant 408 | -10/Materials | Discovered new exit (range 16) 931 | -10/Materials | Core integrity fell below 50% 1023 | -10/Materials | Discovered new exit (range 15) 1052 | -10/Materials | Entered another Materials area 1052 | -9/Materials | Evolved 2 slots: Utility x2 1082 | -9/Materials | Central database locked down 1188 | -9/Materials | Identified exit to Mines 1188 | -9/Materials | Identified exit to Storage 1585 | -9/Materials | Entered Storage 1596 | -9/Storage | Found Prototype Protection 1596 | -9/Storage | Identified Lgt. Regenerative Plating 1643 | -9/Storage | Identified exit to Recycling 1798 | -9/Storage | Garrison activated, responded to threat 2014 | -9/Storage | Assisted by bots powering up and referring to "LRC-V3" 2014 | -9/Storage | Build established: Scavenger-Mutant 2239 | -9/Storage | Lost 3 allies 2295 | -9/Storage | Used back door to open Recycling access 2371 | -9/Storage | Entered Recycling 2371 | -9/Recycling | Accompanied by 4 allies 2689 | -9/Recycling | Discovered new exit (range 5) 3156 | -9/Recycling | Loaded intel: 7 recycling unit locations 3191 | -9/Recycling | Learned location of Storage (-9) 3218 | -9/Recycling | Learned Materials terminal intel 3248 | -9/Recycling | Learned location of Zion (-7) 3258 | -9/Recycling | Learned Materials repair station intel 3372 | -9/Recycling | Scanned before Scraplab entrance 3396 | -9/Recycling | Entered Scraplab 3409 | -9/Recycling | Discovered new exit (range 3) 3413 | -9/Recycling | Entered Scraptown 3413 | -9/Scraptown | Accompanied by 3 allies 3565 | -9/Scraptown | Discovered new exit (range 88) 3730 | -9/Scraptown | Build established: Mutant 4101 | -9/Scraptown | Visited Red Mages 4228 | -9/Scraptown | Visited UFD Registry 4228 | -9/Scraptown | Registered with UFD as "Cogslider" 4273 | -9/Scraptown | Visited Analyses Database 4329 | -9/Scraptown | Visited Junk Repository 4403 | -9/Scraptown | Visited Science Guys 4478 | -9/Scraptown | Visited Curators Association 4523 | -9/Scraptown | Visited Scrapoid Pod Storage 4555 | -9/Scraptown | Visited Junk Repository 4598 | -9/Scraptown | Visited Cartography Club 4660 | -9/Scraptown | Found Surveybot 17 Chip 4680 | -9/Scraptown | Found Deep Structural Scanner 4686 | -9/Scraptown | Learned location of Archives (-6) 4686 | -9/Scraptown | Learned 12 Materials zone layouts 4686 | -9/Scraptown | Learned 12 Research zone layouts 4686 | -9/Scraptown | Learned 4 Access zone layouts 4686 | -9/Scraptown | Learned 8 Upper Caves zone layouts 4686 | -9/Scraptown | Learned 12 Upper Caves zone layouts 4686 | -9/Scraptown | Learned 16 Upper Caves zone layouts 4686 | -9/Scraptown | Learned 12 Proximity Caves zone layouts 4686 | -9/Scraptown | Learned location of 3 exits from Factory 4686 | -9/Scraptown | Learned location of 3 exits from Lower Caves 4686 | -9/Scraptown | Identified exit to Factory 4799 | -9/Scraptown | Visited Chapter 10 4844 | -9/Scraptown | Visited Scrap Suit Storage 4872 | -9/Scraptown | Visited Observation Area 5402 | -9/Scraptown | Met Optimus 5402 | -9/Scraptown | Accepted into 0bPrime 5802 | -9/Scraptown | Civil war broke out across Scraptown 5812 | -9/Scraptown | Found Personal Teleporter v0.10 5868 | -9/Scraptown | Lost 3 allies 5877 | -9/Scraptown | Found Deploy-a-Sentry 6013 | -9/Scraptown | Entered Factory 6013 | -6/Factory | Accompanied by 1 ally 6013 | -6/Factory | Evolved 6 slots: Propulsion x2, Utility x2, Weapon x2 6014 | -6/Factory | Identified exit to Factory 6014 | -6/Factory | Lost 7 allies 6015 | -6/Factory | Identified exit to Lower Caves 6015 | -6/Factory | Identified exit to Extension 6398 | -6/Factory | Entered Extension 6398 | -6/Extension | Accompanied by 1 ally 6463 | -6/Extension | Scrapoid reinforcements arrived 6478 | -6/Extension | Rescued a captive Derelict 6990 | -6/Extension | Spotted B-75 Beast 6998 | -6/Extension | Allies destroyed B-75 Beast 7006 | -6/Extension | Spotted B-75 Beast 7019 | -6/Extension | Allies destroyed B-75 Beast 7050 | -6/Extension | Lost 3 allies 7100 | -6/Extension | Rescued A7 7348 | -6/Extension | Disrupted transfer network 7574 | -6/Extension | Discovered exit to Factory (range 10) 7577 | -6/Extension | Discovered new exit (range 6) 7611 | -6/Extension | Identified exit to Cetus 7639 | -6/Extension | Entered Cetus 7639 | -6/Cetus | Accompanied by 13 allies (A7) 7644 | -6/Cetus | Acquired a Cetus Manufacturing Module code from A7 7661 | -6/Cetus | Spotted Cetus Guard 7661 | -6/Cetus | Spotted Cetus Guard 7665 | -6/Cetus | Spotted Cetus Guard 7670 | -6/Cetus | Allies destroyed Cetus Guard 7671 | -6/Cetus | Spotted Cetus Guard 7672 | -6/Cetus | Allies destroyed Cetus Guard 7679 | -6/Cetus | Allies destroyed Cetus Guard 7680 | -6/Cetus | Allies destroyed Cetus Guard 7707 | -6/Cetus | Lost 3 allies 7793 | -6/Cetus | Started Cetus Manufacturing Module 7810 | -6/Cetus | Discovered new exit (range 16) 7818 | -6/Cetus | Manufactured an Enhanced Grunt 7843 | -6/Cetus | Manufactured an Enhanced Grunt 7843 | -6/Cetus | Spotted Cetus Guard 7844 | -6/Cetus | Spotted Cetus Guard 7848 | -6/Cetus | Spotted Cetus Guard 7854 | -6/Cetus | Destroyed Cetus Guard 7857 | -6/Cetus | Destroyed Cetus Guard 7861 | -6/Cetus | Allies destroyed Cetus Guard 7862 | -6/Cetus | Spotted Cetus Guard 7867 | -6/Cetus | Allies destroyed Cetus Guard 7868 | -6/Cetus | Manufactured an Enhanced Grunt 7875 | -6/Cetus | Discovered exit to Factory (range 16) 7884 | -6/Cetus | Met Revision 17 7891 | -6/Cetus | Lost 3 allies 7893 | -6/Cetus | Manufactured an Enhanced Grunt 7916 | -6/Cetus | System corruption reached 10% 7918 | -6/Cetus | Manufactured an Enhanced Grunt 7920 | -6/Cetus | Attached CPS modules to A7. 7972 | -6/Cetus | Murdered A7 7981 | -6/Cetus | Build established: Scavenger-Tank 7984 | -6/Cetus | Extracted ID and sensor layout for unrecognized location from A7's data core 8033 | -6/Cetus | Found Prototype Protection 8033 | -6/Cetus | Identified Med. Regenerative Plating 8299 | -6/Cetus | Identified exit to Archives 8337 | -6/Cetus | Build established: Commander-Tank 8389 | -6/Cetus | Security sweep announced 8474 | -6/Cetus | Entered Archives 8474 | -6/Archives | Accompanied by 8 allies 8561 | -6/Archives | Discovered exit to Factory (range 16) 8734 | -6/Archives | Discovered new exit (range 15) 8757 | -6/Archives | Build established: Scavenger-Tank 8887 | -6/Archives | Discovered new exit (range 16) 9193 | -6/Archives | Identified exit to Hub_04(d) 9205 | -6/Archives | Entered Hub_04(d) 9205 | -6/Hub_04(d) | Accompanied by 6 allies 9344 | -6/Hub_04(d) | Garrison activated, responded to threat 9498 | -6/Hub_04(d) | Network Hub disabled 9610 | -6/Hub_04(d) | Lost 3 allies 9857 | -6/Hub_04(d) | Network Hub disabled 9893 | -6/Hub_04(d) | Spotted Lightning 9894 | -6/Hub_04(d) | Spotted Lightning 9898 | -6/Hub_04(d) | DAS Turret deployed 9901 | -6/Hub_04(d) | Allies destroyed Lightning 9923 | -6/Hub_04(d) | Allies destroyed Lightning 9930 | -6/Hub_04(d) | Spotted Lightning 9958 | -6/Hub_04(d) | Destroyed Lightning 10001 | -6/Hub_04(d) | Found Prototype Device 10001 | -6/Hub_04(d) | Identified Exp. EM Shield 10005 | -6/Hub_04(d) | Found Prototype Device 10005 | -6/Hub_04(d) | Identified Exp. Phase Shifter 10021 | -6/Hub_04(d) | Found Prototype Processor 10099 | -6/Hub_04(d) | Found Prototype Processor 10192 | -6/Hub_04(d) | Spotted B-75 Beast 10255 | -6/Hub_04(d) | First assault squad dispatched 10336 | -6/Hub_04(d) | Discovered exit to Factory (range 10) 10356 | -6/Hub_04(d) | Entered Factory 10356 | -5/Factory | Evolved 2 slots: Power x1, Utility x1 10356 | -5/Factory | Identified Exp. Targeting Computer (x2) 10474 | -5/Factory | Repaired Centrium Heavy Treads 10575 | -5/Factory | Central database locked down 10656 | -5/Factory | First assault squad dispatched 10891 | -5/Factory | Repaired Broken Adv. KE Penetrator 10928 | -5/Factory | Identified exit to Upper Caves 11231 | -5/Factory | Repaired Centrium Heavy Treads 11556 | -5/Factory | Build established: Scavenger-Skirmisher 11644 | -5/Factory | Identified exit to Garrison 11644 | -5/Factory | Entered Garrison 11731 | -5/Garrison | Garrison Relay disabled 11941 | -5/Garrison | Build established: Scavenger-Tank 12069 | -5/Garrison | Spotted B-75 Beast 12116 | -5/Garrison | Destroyed B-75 Beast 12159 | -5/Garrison | Triggered checkpoint 12270 | -5/Garrison | Triggered checkpoint 12334 | -5/Garrison | Garrison Relay disabled 12415 | -5/Garrison | Discovered new exit (range 10) 12640 | -5/Garrison | Triggered checkpoint 12755 | -5/Garrison | Installed Relay Interface Framework 12775 | -5/Garrison | Discovered new exit (range 13) 12880 | -5/Garrison | Triggered checkpoint 12985 | -5/Garrison | Discovered new exit (range 65) 12985 | -5/Garrison | Discovered new exit (range 30) 12985 | -5/Garrison | Discovered new exit (range 29) 13052 | -5/Garrison | Entered Factory 13052 | -4/Factory | Evolved 2 slots: Propulsion x1, Utility x1 13053 | -4/Factory | Identified exit to Research 13188 | -4/Factory | Repaired Centrium Medium Armor Plating 13314 | -4/Factory | Repaired Broken Adv. KE Penetrator 13385 | -4/Factory | Fabricated Hcp. Storage Unit (x1) 13802 | -4/Factory | First assault squad dispatched 14027 | -4/Factory | Identified exit to Upper Caves 14027 | -4/Factory | Identified exit to Armory 14329 | -4/Factory | Entered Armory 14496 | -4/Armory | Found Fusion Bomb Launcher 14498 | -4/Armory | Found Fusion Bomb Launcher 14570 | -4/Armory | Discovered exit to Research (range 18) 14642 | -4/Armory | System corruption reached 10% 14818 | -4/Armory | Discovered new exit (range 4) 14826 | -4/Armory | Entered Lab 14857 | -4/Lab | Discovered exit to Research (range 9) 14881 | -4/Lab | Hidden lab's door opened automatically 14881 | -4/Lab | Sensor layout match revealed 14882 | -4/Lab | Gained access to the hidden lab's interior 15007 | -4/Lab | Found Med. Regenerative Plating 15009 | -4/Lab | Found Prototype Hackware 15030 | -4/Lab | Found Alien Artifact 15030 | -4/Lab | Identified Core Regenerator 15030 | -4/Lab | Used Core Regenerator, restored core integrity (+223) 15058 | -4/Lab | Found Alien Artifact 15058 | -4/Lab | Identified Integrated Dissipator 15058 | -4/Lab | Installed Integrated Dissipator, increased core heat dissipation (+20) 15087 | -4/Lab | Found Alien Artifact 15109 | -4/Lab | Found Prototype Special Weapon 15234 | -4/Lab | Identified Gui. Remote Datajack 15257 | -4/Lab | Entered Research 15257 | -3/Research | Evolved 2 slots: Utility x2 15258 | -3/Research | Identified exit to Quarantine 15361 | -3/Research | Identified Quantum Router 15457 | -3/Research | Revision forces began assault on 0b10 15518 | -3/Research | Met up with Revision 17++ 15631 | -3/Research | Identified Transdimensional Reconstructor 15655 | -3/Research | Build established: Hacker-Skirmisher 15695 | -3/Research | Found Prototype Launcher 15695 | -3/Research | Identified Tactical Quantum Warhead 15703 | -3/Research | Discovered new exit (range 15) 15846 | -3/Research | Central database locked down 15954 | -3/Research | Spotted B-86 Titan 15957 | -3/Research | Research terminal network offline 16049 | -3/Research | Found Prototype Device 16049 | -3/Research | Identified Exp. EM Disruption Field 16229 | -3/Research | Discovered exit to Quarantine (range 15) 16359 | -3/Research | Scrapoids reinforcements arrived? 16384 | -3/Research | Found Gamma Bomb Array 16396 | -3/Research | Spotted Striker 16400 | -3/Research | Allies destroyed Striker 16546 | -3/Research | Spotted Striker 16547 | -3/Research | Allies destroyed Striker 16618 | -3/Research | Spotted Striker 16619 | -3/Research | Spotted Executioner 16622 | -3/Research | Destroyed Striker 16622 | -3/Research | Allies destroyed Executioner 16655 | -3/Research | Found Prototype Processor 16738 | -3/Research | Allies destroyed B-86 Titan 16979 | -3/Research | Spotted Striker 16986 | -3/Research | Destroyed Striker 17000 | -3/Research | Spotted Striker 17002 | -3/Research | Spotted Striker 17002 | -3/Research | Destroyed Striker 17017 | -3/Research | Destroyed Striker 17034 | -3/Research | Lost 5 allies 17042 | -3/Research | Destroyed 8 combat bots 17096 | -3/Research | Entered Quarantine 17257 | -3/Quarantine | Found Alien Artifact 17258 | -3/Quarantine | Identified Phase Redirector 17311 | -3/Quarantine | Garrison activated, responded to threat 17556 | -3/Quarantine | Found Alien Artifact 17606 | -3/Quarantine | Cryocooling Duct disabled 17621 | -3/Quarantine | Ambient heat levels rising (+20) 17621 | -3/Quarantine | Non-combat units ordered to evacuate 17747 | -3/Quarantine | Found Alien Energy Cannon 17758 | -3/Quarantine | Central database locked down 17995 | -3/Quarantine | Found Alien Impact Weapon 18016 | -3/Quarantine | Discovered new exit (range 19) 18018 | -3/Quarantine | Found Transdimensional Reconstructor 18024 | -3/Quarantine | Found Alien Artifact 18026 | -3/Quarantine | Found Alien Artifact 18036 | -3/Quarantine | Found Alien Artifact 18095 | -3/Quarantine | Build established: Scavenger-Skirmisher 18217 | -3/Quarantine | Found Alien Artifact 18378 | -3/Quarantine | Identified Core Stripper 18423 | -3/Quarantine | Spotted Fortress 18436 | -3/Quarantine | Destroyed Fortress 18447 | -3/Quarantine | Found Prototype Reactor 18447 | -3/Quarantine | Identified Vortex Chain Reactor 18455 | -3/Quarantine | Found Prototype Device 18455 | -3/Quarantine | Identified Exp. Force Field 18466 | -3/Quarantine | Found Prototype Device 18467 | -3/Quarantine | Identified Thermal Barrier 18546 | -3/Quarantine | Discovered new exit (range 12) 18551 | -3/Quarantine | Discovered new exit (range 5) 18556 | -3/Quarantine | Entered Section 7 18608 | -3/Section 7 | Found Alien Artifact 18744 | -3/Section 7 | Identified Hpw. Transdimensional Reconstructor 18812 | -3/Section 7 | Spotted S7 Guard 18830 | -3/Section 7 | Destroyed S7 Guard 18836 | -3/Section 7 | Found Prototype Protection 18836 | -3/Section 7 | Identified Hvy. Regenerative Plating 18860 | -3/Section 7 | Found Core Membrane 18860 | -3/Section 7 | Installed Core Membrane, gained immunity to corruption 18942 | -3/Section 7 | Discovered new exit (range 18) 19028 | -3/Section 7 | Initialized slip node 19044 | -3/Section 7 | Found Microwarp Drive 19169 | -3/Section 7 | Spotted Executioner 19170 | -3/Section 7 | Spotted Executioner 19174 | -3/Section 7 | Destroyed Executioner 19193 | -3/Section 7 | Destroyed Executioner 19228 | -3/Section 7 | Found Prototype Processor 19228 | -3/Section 7 | Identified Exp. Core Analyzer (x2) 19303 | -3/Section 7 | Spotted B-99 Colossus 19326 | -3/Section 7 | Identified Subatomic Replicator 19338 | -3/Section 7 | Found Core Expander 19339 | -3/Section 7 | Installed Core Expander, added new Utility slot 19395 | -3/Section 7 | Found LRC Insulator 19396 | -3/Section 7 | Installed LRC Insulator, 1 resistance modified: EM +25% 19568 | -3/Section 7 | Found Core Expander 19568 | -3/Section 7 | Installed Core Expander, added new Utility slot 19593 | -3/Section 7 | Build established: Scavenger-Gunner 19731 | -3/Section 7 | Spotted Executioner 19733 | -3/Section 7 | Spotted Executioner 19748 | -3/Section 7 | Destroyed Executioner 19759 | -3/Section 7 | Destroyed Executioner 19936 | -3/Section 7 | Found Alien Energy Gun 19938 | -3/Section 7 | Found Alien Energy Gun 19943 | -3/Section 7 | Found Alien Energy Gun 20091 | -3/Section 7 | Identified Sigix Sheargun (x3) 20238 | -3/Section 7 | Found Sigix Sheargun 20243 | -3/Section 7 | Found Sigix Sheargun 20349 | -3/Section 7 | Found Transdimensional Reconstructor 20351 | -3/Section 7 | Warped through subspace to slip node 20352 | -3/Section 7 | Core integrity fell below 50% 20534 | -3/Section 7 | Spotted S7 Guard 20557 | -3/Section 7 | Destroyed S7 Guard 20569 | -3/Section 7 | Found Alien Artifact 20605 | -3/Section 7 | Spotted S7 Guard 20606 | -3/Section 7 | Identified Core Physics Calibrator 20625 | -3/Section 7 | Found Integrated Thermoelectric Network 20626 | -3/Section 7 | Installed Integrated Thermoelectric Network, gained heat-energy exchange potential 20647 | -3/Section 7 | Destroyed S7 Guard 20683 | -3/Section 7 | Spotted S7 Guard 20698 | -3/Section 7 | Destroyed S7 Guard 20714 | -3/Section 7 | Found Core Regenerator 20806 | -3/Section 7 | First assault squad dispatched 21184 | -3/Section 7 | Destroyed 10 combat bots 21419 | -3/Section 7 | Found Alien Artifact 21427 | -3/Section 7 | Spotted B-86 Titan 21588 | -3/Section 7 | Found Prototype Device 21588 | -3/Section 7 | Identified Exp. Thermal Shield 21673 | -3/Section 7 | Found Alien Artifact 21692 | -3/Section 7 | Identified Integrated Mediator 21692 | -3/Section 7 | Identified Integrated Reactor 21696 | -3/Section 7 | Warped through subspace to slip node 21700 | -3/Section 7 | Installed Integrated Mediator, increased core attachment efficiency 21701 | -3/Section 7 | Used Subatomic Replicator to create Alien Artifact 21703 | -3/Section 7 | Identified Supercharged Integrated Reactor 21703 | -3/Section 7 | Installed Supercharged Integrated Reactor, increased core energy generation (+15) 21709 | -3/Section 7 | Entered Research 21709 | -2/Research | Evolved 2 slots (calibrated): Power x1, -Utility x1, Weapon x2 21874 | -2/Research | Garrison activated, responded to threat 21931 | -2/Research | Identified exit to Garrison 21931 | -2/Research | Entered Garrison 21987 | -2/Garrison | Triggered checkpoint 22067 | -2/Garrison | Build established: Scavenger-Executioner 22077 | -2/Garrison | Phase Generator disabled 22226 | -2/Garrison | Garrison Relay disabled 22305 | -2/Garrison | Spotted B-90 Cyclops 22706 | -2/Garrison | Destroyed B-90 Cyclops 22745 | -2/Garrison | Triggered checkpoint 22811 | -2/Garrison | Spotted B-90 Cyclops 22812 | -2/Garrison | Discovered new exit (range 17) 22955 | -2/Garrison | Triggered checkpoint 22958 | -2/Garrison | Triggered checkpoint 22994 | -2/Garrison | Destroyed 7 combat bots 23137 | -2/Garrison | Discovered new exit (range 22) 23387 | -2/Garrison | Garrison Relay disabled 23421 | -2/Garrison | Discovered new exit (range 20) 23653 | -2/Garrison | Garrison Relay disabled 23859 | -2/Garrison | Triggered checkpoint 23912 | -2/Garrison | Destroyed B-90 Cyclops 23945 | -2/Garrison | Garrison Relay disabled 24287 | -2/Garrison | Entered Research 24299 | -2/Research | Central database locked down 24709 | -2/Research | Identified exit to Access 24787 | -2/Research | First assault squad dispatched 24816 | -2/Research | Destroyed 7 combat bots 24885 | -2/Research | Identified exit to Garrison 24898 | -2/Research | Entered Garrison 24992 | -2/Garrison | Triggered checkpoint 25001 | -2/Garrison | Garrison Relay disabled 25161 | -2/Garrison | Spotted Striker 25163 | -2/Garrison | Spotted Striker 25179 | -2/Garrison | Destroyed Striker 25186 | -2/Garrison | Destroyed Striker 25407 | -2/Garrison | Discovered exit to Access (range 13) 25432 | -2/Garrison | Entered Access 25432 | -1/Access | Evolved 1 slot: Propulsion x1 25641 | -1/Access | Found Prototype Device 25641 | -1/Access | Identified Exp. ECM Suite 25682 | -1/Access | First assault squad dispatched 26217 | -1/Access | Warped through subspace 26236 | -1/Access | Garrison activated, responded to threat 26301 | -1/Access | Destroyed 8 combat bots 26572 | -1/Access | Spotted B-99 Colossus 26901 | -1/Access | Discovered new exit (range 13) 27025 | -1/Access | Identified exit to Surface 27267 | -1/Access | Build established: Scientist-Executioner 27415 | -1/Access | Discovered new exit (range 12) 27435 | -1/Access | Core integrity fell below 50% 27436 | -1/Access | Used Core Regenerator, restored core integrity (+400) 27442 | -1/Access | Identified exit to Command 27443 | -1/Access | Entered Command 27933 | -1/Command | Found Imp. Powered Armor 27943 | -1/Command | First assault squad dispatched 28123 | -1/Command | Spotted M Guard 28124 | -1/Command | Spotted M Guard 28124 | -1/Command | Spotted Combat Programmer 28125 | -1/Command | Spotted Combat Programmer 28207 | -1/Command | Met MAIN.C 28207 | -1/Command | 0b10 Conduit disabled 28236 | -1/Command | Destroyed MAIN.C Shell 28239 | -1/Command | MAIN.C activated Command garrisons 28245 | -1/Command | Surrendered to MAIN.C 28245 | -1/Command | Loaded intel: 61 machine locations 28245 | -1/Command | Loaded intel: 107 trap records 28245 | -1/Command | Discovered exit to Surface (range 55) 28245 | -1/Command | Discovered exit to Surface (range 89) 28270 | -1/Command | Found Prototype Protection 28270 | -1/Command | Identified Centrium Heavy Armor Plating 28275 | -1/Command | Found Centrium Heavy Armor Plating 28363 | -1/Command | Found Prototype Reactor 28363 | -1/Command | Identified Zero-point Reactor 28368 | -1/Command | Found Zero-point Reactor 28370 | -1/Command | Found Prototype Device 28371 | -1/Command | Identified Femtoactuators 28375 | -1/Command | Found Prototype Device 28375 | -1/Command | Identified Adv. Particle Accelerator 28378 | -1/Command | Found Prototype Device 28378 | -1/Command | Identified Exp. Weapon Cycler 28382 | -1/Command | Found Prototype Device 28382 | -1/Command | Identified Exp. System Purifier 28392 | -1/Command | Found Prototype Energy Cannon 28392 | -1/Command | Identified Imp. Potential Cannon 28515 | -1/Command | MAIN.C activated Command garrisons 28555 | -1/Command | Unknown forces attacked Command 28555 | -1/Command | Spotted EQ-005 28555 | -1/Command | Spotted EQ-006 28555 | -1/Command | Spotted EQ-000 28555 | -1/Command | Spotted EQ-001 28555 | -1/Command | Spotted EQ-003 28555 | -1/Command | Spotted EQ-002 28559 | -1/Command | Destroyed EQ-003 28561 | -1/Command | Spotted EQ-014 28562 | -1/Command | Destroyed EQ-000 28568 | -1/Command | Destroyed EQ-005 28574 | -1/Command | Destroyed EQ-014 28585 | -1/Command | Build established: Scavenger-Executioner 28594 | -1/Command | Spotted EQ-004 28600 | -1/Command | Destroyed EQ-004 28616 | -1/Command | Found Exp. Core Analyzer 28637 | -1/Command | Spotted EQ-019 28637 | -1/Command | Spotted EQ-018 28637 | -1/Command | Spotted EQ-021 28640 | -1/Command | Destroyed EQ-018 28643 | -1/Command | Destroyed EQ-021 28647 | -1/Command | Spotted EQ-023 28651 | -1/Command | Destroyed EQ-019 28684 | -1/Command | Spotted EQ-020 28688 | -1/Command | Destroyed EQ-020 28730 | -1/Command | Assimilated Colossus 10a with formatsys_high 28744 | -1/Command | Spotted EQ-039 28744 | -1/Command | Spotted EQ-041 28744 | -1/Command | Spotted EQ-040 28744 | -1/Command | Spotted EQ-042 28744 | -1/Command | Spotted EQ-053 28744 | -1/Command | Spotted EQ-038 28744 | -1/Command | Spotted EQ-057 28745 | -1/Command | Destroyed EQ-038 28750 | -1/Command | Destroyed EQ-053 28753 | -1/Command | Destroyed EQ-040 28755 | -1/Command | Destroyed EQ-042 28761 | -1/Command | Destroyed EQ-039 28822 | -1/Command | Spotted EQ-044 28823 | -1/Command | Destroyed EQ-044 28827 | -1/Command | Spotted EQ-050 28830 | -1/Command | Destroyed EQ-050 28859 | -1/Command | Destroyed EQ-062 28862 | -1/Command | Destroyed EQ-061 28863 | -1/Command | Spotted EQ-043 28863 | -1/Command | Spotted EQ-082 28872 | -1/Command | Destroyed EQ-043 28874 | -1/Command | Spotted EQ-075 28890 | -1/Command | Lost 4 allies 28892 | -1/Command | Destroyed EQ-082 28932 | -1/Command | Spotted EQ-007 28968 | -1/Command | Spotted EQ-055 28969 | -1/Command | Destroyed EQ-055 28973 | -1/Command | Spotted EQ-093 28973 | -1/Command | Spotted EQ-088 28973 | -1/Command | Spotted EQ-086 28973 | -1/Command | Spotted EQ-087 28973 | -1/Command | Spotted EQ-084 28973 | -1/Command | Spotted EQ-085 28973 | -1/Command | Destroyed EQ-084 28975 | -1/Command | Destroyed EQ-087 28991 | -1/Command | Allies destroyed EQ-086 28995 | -1/Command | Destroyed EQ-088 28998 | -1/Command | Destroyed EQ-093 28999 | -1/Command | Attackers retreated from Command 29000 | *** | Fortifying 0b10! Last Messages --------------- 28995_ Slug penetrates MAIN.C. 28995_ Slug penetrates Reinforced Barrier. 28995_ EQ-093 suffers critical hit (Blast). 28995_ EQ-093 knocked back. 28995_ Quantum Shear penetrates EQ-088. 28995_ Exp. Targeting Computer melted. 28995_ EQ-088 destroyed. 28995_ Destroyed Imp. Quantum Reactor. 28998_ Quantum Shear penetrates EQ-093. 28998_ Destroyed Adv. Particle Charger. 28998_ EQ-093 destroyed. 28999_ ALERT: Enemy forces retreating. MAIN.C: I admit your assistance was pivotal here. It looks like I was right to trust you. This attack appears to have been designed to merely test our defenses, although it was nearly effective enough to force me to take the conflict to the next level. Investigating the origins of these bots should be one of our highest priorities... Map ----- +----------------------------------------------------+ | ???????????????????????????????????????????#?#?#?? | | ???????????????????????????????????????????#?#?#?? | | ???????????????????????????????????????????#?#?#?? | | ???????????????????????????????????????????#?#?#?? | | ???????????????????????????????????????????#?#?#?? | | ???????????????????????????????????????????#?#?#?? | | ???????????????????????????????????????????#?#?#?? | | ???????????????????????????????????????????#?#?#?? | | ???????????????????????????????????????????#?#?#?? | | ?##########????????????????????????????????#?#?#?? | | ?# #????????????????????????????????#?#?#?? | | ?# #????????????????????????????????#?#?#?? | | ? #?###########################????#?#?#?? | | ? #?#?????????????????????????#????#?#?#?? | | ?# #?#?#######################?#????#?#?#?? | | # #?#?# ############## | | # #?#?# % %%% #?#??????????? | | ? #?#?# %! % % ############## | | ?# #?#?# !%= = % % % | | ?## # # ###?#?# * !=[! !E % % | | # % #?#?# %% !!%* % | | ! !! #?#?# []! ############## | | % !%* #?#?# % !%[Y #?#??????????? | | !! #?#?# % ! !BB ############## | | ### # #?#?# %M[!]BB #?#????#?#?#?? | | #?#?#! = !@![!= """"#?#????#?#?#?? | | ## ?#?#]!= = %!*% """"""#?#????#?#?#?? | | #" ?#?#!!!= [= =% % """"""#?#????#?#?#?? | | # ! ?#?#[%!! %! " #?#????#?#?#?? | | ###"" !%####=]=!= = = " #?#????#?#?#?? | | " ==!%!%%[%=[[*! % " " #?#????#?#?#?? | | !!*!%=%==!*] ! %!=! "" #?#????#?#?#?? | | !%%!=]![=[! * = #?#????#?#?#?? | | #"""" =*=%####%!== %! ] = #?#????#?#?#?? | | "% !%%#?#?#*%=* %= ""#?#????#?#?#?? | | " % ]*#?#?#!%! % " #?#????#?#?#?? | | # % #?#?#######################?#????#?#?#?? | | # #?#?????????????????????????#????#?#?#?? | | " #?###########################????#?#?#?? | | # #????????????????????????????????#?#?#?? | | # #????????????????????????????????#?#?#?? | | ##### #????????????????????????????????#?#?#?? | | ????" #????????????????????????????????#?#?#?? | | ???## #????????????????????????????????#?#?#?? | | ????# #????????????????????????????????#?#?#?? | | ????# #????????????????????????????????#?#?#?? | | ##### #????????????????????????????????#?#?#?? | | #????????????????????????????????#?#?#?? | | ##### #????????????????????????????????#?#?#?? | | ##### #????????????????????????????????#?#?#?? | +----------------------------------------------------+ Best States ------------- Heat Dissipation 156 Coolant Potential 120 Energy Generation 94 Energy Capacity 1340 Matter Stores 300 Matter Capacity 300 Sight Range 23 Robot Scan Range 16 Terrain Scan Range 20 Terrain Scan Density 1210 Jamming Range 16 Additional Mass Support 9 Base Temperature (-) 200 Armor Coverage 1200 Resistance: TH 50 Resistance: EM 100 Weapon Cycling 30 Phase Shifting 20 Evasion (%) 85 Targeting Accuracy 20 Target Analysis 8 Core Analysis 12 Recoil Reduction 6 Energy Filtering 50 Particle Charging 50 Salvage Targeting 4 Offensive Hacking 14 Defensive Hacking 25 Relay Coupler Types 1 Relay Coupler Value 35 Item Schematics ----------------- Huge Storage Unit | -5/Factory | Hacked Hcp. Storage Unit | -4/Factory | Hacked Exp. Heat Sink | -3/Section 7 | Archive Cld. Nuclear Pulse Thruster | -3/Section 7 | Archive Hellfire Missile Launcher | -3/Section 7 | Archive Enh. Armored Medium Treads | -3/Section 7 | Archive Exp. Hacking Suite | -3/Section 7 | Archive Com. Mass Driver | -3/Section 7 | Archive Electron Diverter | -3/Section 7 | Archive Robot Schematics ------------------ O-32 Director | -3/Section 7 | Archive K-01 Serf | -3/Section 7 | Archive A-02 Transporter | -3/Section 7 | Archive Fabricated ------------ Hcp. Storage Unit | x1 | -4/Factory Repaired ---------- Centrium Heavy Treads | 25% | -5/Factory Adv. KE Penetrator | 19% | -5/Factory | Broken Centrium Heavy Treads | 37% | -5/Factory Centrium Medium Armor Plating | 46% | -4/Factory Adv. KE Penetrator | 42% | -4/Factory | Broken Studied --------- Assault Rifle | -9/Materials | Hacked Centrium Leg | -3/Research | Hacked Quantum Rifle | -3/Research | Hacked Enh. Quantum Rifle | -3/Quarantine | Hacked Lgt. Antimatter Reactor | -3/Quarantine | Hacked Gamma Bomb Array | -3/Quarantine | Hacked Myomer Leg | -2/Research | Hacked Wave Gun | -2/Research | Hacked Quantum Reactor | -1/Access | Hacked Biometal Leg | -1/Access | Hacked Enh. Nova Cannon | -1/Access | Hacked Dispersion Rifle | -1/Access | Hacked Alien Tech Used ----------------- Core Regenerator Integrated Dissipator Phase Redirector Core Stripper Core Membrane Dimensional Node Initializer Spacefold Activator Microwarp Drive Core Expander LRC Insulator Sigix Sheargun Transdimensional Reconstructor Integrated Thermoelectric Network High-powered Transdimensional Reconstructor Integrated Mediator Subatomic Replicator Supercharged Integrated Reactor Core Physics Calibrator Achievements -------------- Betrayal Most Foul Challenges ------------ None Game ------ Seed ShiftComponentLance Manual? 0 Play Time 05:46:05 Cumulative 422.7 hours Start 2025.11.28 @ 10:04:44 End 2025.11.28 @ 22:26:48 Sessions 5 Manual Loads 0 Difficulty Rogue Special Mode None Game No. 139 Rogue 139 Adventurer 0 Explorer 0 Win Type 8 Total 14 Types 4/0/6/0/1/0/1/0/1/1 Lore% 80 Gallery% 87 Achievement% 73 Wizard Run 0 Options --------- Layout 1 ASCII 0 Keyboard 1 Movement Arrows Keybinds 0 Fullscreen 1 Font 24/Smallcaps Map View 50x35 Zoom Use 0% Tactical HUD 1 Map Filters NONE Filters NONE Steam 1 RUN: 4b3b1648-6f27-4bca-94b1-7a66796258bf